Workbook

Sheet 9в
B2: ПРОТОКОЛ ЛЕГКАЯ АТЛЕТИКА
B3: школьный этап Всероссийских спортивных соревнований школьников «Президентские спортивные игры»
B4: МОБУ СОШ №25 | D4: 9В класс | S4: 2021-04-12
B6: Фамилия, имя учащегося | C6: п | E6: воз | F6: Результат состязаний
A7: № | C7: о | D7: Год | E7: раст | F7: Бег 100м | H7: Бег 800м/600д | J7: Прыжок | L7: метание
A8: п/п | C8: л | D8: рождения | E8: (лет) | F8: (сек.) | H8: (мин.сек.) | J8: в длину с разбега(см) | L8: мяча 140г (м) | R8: ЭСТАФЕТА | T8: Итог
F9: рез-т | G9: очки | H9: рез-т | I9: очки | J9: рез-т | K9: очки | L9: рез-т | M9: очки
B10: Строки для настройки! | D10: Пересчёт | F10: м | G10: ж | H10: м | I10: ж | J10: м | K10: ж | L10: м | M10: ж | T10: 50/24/1//200/200//200/True
D11: 2 | F11: 12 | G11: 13 | H11: 2 | I11: 3 | J11: 6 | K11: 7 | L11: 10 | M11: 11
A12: 1 | B12: Макаров Савелий | C12: м | D12: 2005 | E12: 15 | F12: 13.9 | G12: =ПрСостяз($C12,$E12,F$11,G$11,F12,$D$11) -> 66 | H12: 2.92 | I12: =ПрСостяз($C12,$E12,H$11,I$11,H12,$D$11) -> 76 | J12: 467 | K12: =ПрСостяз($C12,$E12,J$11,K$11,J12,$D$11) -> 55 | L12: 43 | M12: =ПрСостяз($C12,$E12,L$11,M$11,L12,$D$11) -> 69 | T12: =SUM($G12+$I12+$M12+$K12+$O12+$Q12+$S12) -> 266
A13: 2 | B13: Калугин Андрей | C13: м | D13: 2005 | E13: 15 | F13: 14.1 | G13: =ПрСостяз($C13,$E13,F$11,G$11,F13,$D$11) -> 60 | H13: 2.94 | I13: =ПрСостяз($C13,$E13,H$11,I$11,H13,$D$11) -> 76 | J13: 453 | K13: =ПрСостяз($C13,$E13,J$11,K$11,J13,$D$11) -> 51 | L13: 41 | M13: =ПрСостяз($C13,$E13,L$11,M$11,L13,$D$11) -> 64 | T13: 251
A14: 3 | B14: Мирошниченко Илья | C14: м | D14: 2005 | E14: 15 | F14: 14.5 | G14: 51 | H14: 2.65 | I14: 76 | J14: 456 | K14: 51 | L14: 35 | M14: 49 | R14: 2.42,7 | T14: 227
A15: 4 | B15: Дзапшба Руслан | C15: м | D15: 2005 | E15: 15 | F15: 13.8 | G15: 69 | H15: 2.89 | I15: 76 | J15: 435 | K15: 46 | L15: 30 | M15: 39 | T15: 230
A16: 5 | B16: Трухинцов Олег | C16: м | D16: 2005 | E16: 15 | F16: 13.6 | G16: 75 | H16: 2.42 | I16: 98 | J16: 492 | K16: 63 | L16: 49 | M16: 84 | T16: 320
A17: 6 | B17: Цатурян Иван | C17: м | D17: 2005 | E17: 15 | F17: 14.1 | G17: 60 | H17: 2.9 | I17: 76 | J17: 453 | K17: 51 | L17: 31 | M17: 41 | T17: 228
A20: Сумма очков МАЛЬЧИКИ | F20: =G12+G13+G14+G15+G16+G17+G18+G19 -> 381 | H20: =I12+I13+I14+I15+I16+I17+I18+I19 -> 478 | J20: =K12+K13+K14+K15+K16+K17+K18+K19 -> 317 | L20: =M12+M13+M14+M15+M16+M17+M18+M19 -> 346 | T20: =SUM(T12:T19) -> 1522
A22: 7 | B22: Кузнецова Светлана | C22: ж | D22: 2005 | E22: 15 | F22: 15.6 | G22: =ПрСостяз($C22,$E22,F$11,G$11,F22,$D$11) -> 90 | H22: 2.39 | I22: =ПрСостяз($C22,$E22,H$11,I$11,H22,$D$11) -> 37 | J22: 354 | K22: =ПрСостяз($C22,$E22,J$11,K$11,J22,$D$11) -> 36 | L22: 29 | M22: =ПрСостяз($C22,$E22,L$11,M$11,L22,$D$11) -> 57 | T22: =SUM($G22+$I22+$M22+$K22+$O22+$Q22+$S22) -> 220
A23: 8 | B23: Календжян Кристина | C23: ж | D23: 2005 | E23: 15 | F23: 15 | G23: =ПрСостяз($C23,$E23,F$11,G$11,F23,$D$11) -> 108 | H23: 2.45 | I23: =ПрСостяз($C23,$E23,H$11,I$11,H23,$D$11) -> 25 | J23: 376 | K23: =ПрСостяз($C23,$E23,J$11,K$11,J23,$D$11) -> 43 | L23: 27 | M23: =ПрСостяз($C23,$E23,L$11,M$11,L23,$D$11) -> 52 | T23: 228
A24: 9 | B24: Гончарова Алёна | C24: ж | D24: 2005 | E24: 15 | F24: 15.9 | G24: 81 | H24: 2.34 | I24: 47 | J24: 378 | K24: 44 | L24: 24 | M24: 44 | T24: 216
A25: 10 | B25: Распаркина Полина | C25: ж | D25: 2005 | E25: 15 | F25: 15.6 | G25: 90 | H25: 2.35 | I25: 45 | J25: 387 | K25: 47 | L25: 26 | M25: 49 | T25: 231
A26: 11 | B26: Донченко Лолита | C26: ж | D26: 2005 | E26: 15 | F26: 16 | G26: 78 | H26: 2.23 | I26: 69 | J26: 400 | K26: 51 | L26: 28 | M26: 54 | T26: 252
A27: 12 | B27: Язиджян Адриана | C27: ж | D27: 2005 | E27: 15 | F27: 16.2 | G27: 73 | H27: 2.25 | I27: 65 | J27: 379 | K27: 44 | L27: 25 | M27: 47 | T27: 229
A30: Сумма очков ДЕВОЧКИ | F30: =G22+G23+G24+G25+G26+G27+G28+G29 -> 520 | H30: =I22+I23+I24+I25+I26+I27+I28+I29 -> 288 | J30: =K22+K23+K24+K25+K26+K27+K28+K29 -> 265 | L30: =M22+M23+M24+M25+M26+M27+M28+M29 -> 303 | T30: =SUM(T22:T29) -> 1376
B32: Директор МОБУ СОШ №25_______________________ | F32: Т.Г. Джикия

Sheet 9б
B2: ПРОТОКОЛ ЛЕГКАЯ АТЛЕТИКА
B3: школьный этап Всероссийских спортивных соревнований школьников «Президентские спортивные игры»
B4: МОБУ СОШ №25 | D4: 9Б класс | S4: 2021-04-12
B6: Фамилия, имя учащегося | C6: п | E6: воз | F6: Результат состязаний
A7: № | C7: о | D7: Год | E7: раст | F7: Бег 100м | H7: Бег 800м/600д | J7: Прыжок | L7: метание
A8: п/п | C8: л | D8: рождения | E8: (лет) | F8: (сек.) | H8: (мин.сек.) | J8: в длину с разбега(см) | L8: мяча 140г (м) | R8: ЭСТАФЕТА | T8: Итог
F9: рез-т | G9: очки | H9: рез-т | I9: очки | J9: рез-т | K9: очки | L9: рез-т | M9: очки
B10: Строки для настройки! | D10: Пересчёт | F10: м | G10: ж | H10: м | I10: ж | J10: м | K10: ж | L10: м | M10: ж | T10: 50/24/1//200/200//200/True
D11: 2 | F11: 12 | G11: 13 | H11: 2 | I11: 3 | J11: 6 | K11: 7 | L11: 10 | M11: 11
A12: 1 | B12: Поливкин Дмитрий | C12: м | D12: 2005 | E12: 15 | F12: 16 | G12: =ПрСостяз($C12,$E12,F$11,G$11,F12,$D$11) -> 21 | H12: 2.27 | I12: =ПрСостяз($C12,$E12,H$11,I$11,H12,$D$11) -> 117 | J12: 423 | K12: =ПрСостяз($C12,$E12,J$11,K$11,J12,$D$11) -> 43 | L12: 33 | M12: =ПрСостяз($C12,$E12,L$11,M$11,L12,$D$11) -> 45 | T12: =SUM($G12+$I12+$M12+$K12+$O12+$Q12+$S12) -> 226
A13: 2 | B13: Амоев Роберт | C13: м | D13: 2005 | E13: 15 | F13: 15.4 | G13: =ПрСостяз($C13,$E13,F$11,G$11,F13,$D$11) -> 33 | H13: 2.67 | I13: =ПрСостяз($C13,$E13,H$11,I$11,H13,$D$11) -> 76 | J13: 436 | K13: =ПрСостяз($C13,$E13,J$11,K$11,J13,$D$11) -> 46 | L13: 39 | M13: =ПрСостяз($C13,$E13,L$11,M$11,L13,$D$11) -> 59 | T13: 214
A14: 3 | B14: Агапов Константин | C14: м | D14: 2005 | E14: 15 | F14: 14.2 | G14: 57 | H14: 2.78 | I14: 76 | J14: 435 | K14: 46 | L14: 38 | M14: 57 | R14: 2.42,5 | T14: 236
A15: 4 | B15: Демидов Саша | C15: м | D15: 2005 | E15: 15 | F15: 14.3 | G15: 55 | H15: 2.23 | I15: 122 | J15: 439 | K15: 47 | L15: 42 | M15: 67 | T15: 291
A16: 5 | B16: Магдесян Руслан | C16: м | D16: 2005 | E16: 15 | F16: 14.8 | G16: 45 | H16: 2.67 | I16: 76 | J16: 440 | K16: 47 | L16: 40 | M16: 62 | T16: 230
A17: 6 | B17: Зморрович Никита | C17: м | D17: 2005 | E17: 15 | F17: 14.9 | G17: 43 | H17: 2.77 | I17: 76 | J17: 467 | K17: 55 | L17: 30 | M17: 39 | T17: 213
A20: Сумма очков МАЛЬЧИКИ | F20: =G12+G13+G14+G15+G16+G17+G18+G19 -> 254 | H20: =I12+I13+I14+I15+I16+I17+I18+I19 -> 543 | J20: =K12+K13+K14+K15+K16+K17+K18+K19 -> 284 | L20: =M12+M13+M14+M15+M16+M17+M18+M19 -> 329 | T20: =SUM(T12:T19) -> 1410
A22: 7 | B22: Проненко Юлия | C22: ж | D22: 2005 | E22: 15 | F22: 16 | G22: =ПрСостяз($C22,$E22,F$11,G$11,F22,$D$11) -> 78 | H22: 1.89 | I22: =ПрСостяз($C22,$E22,H$11,I$11,H22,$D$11) -> 115 | J22: 387 | K22: =ПрСостяз($C22,$E22,J$11,K$11,J22,$D$11) -> 47 | L22: 27 | M22: =ПрСостяз($C22,$E22,L$11,M$11,L22,$D$11) -> 52 | T22: =SUM($G22+$I22+$M22+$K22+$O22+$Q22+$S22) -> 292
A23: 8 | B23: Захаренко Лидия | C23: ж | D23: 2005 | E23: 15 | F23: 15.1 | G23: =ПрСостяз($C23,$E23,F$11,G$11,F23,$D$11) -> 105 | H23: 2.37 | I23: =ПрСостяз($C23,$E23,H$11,I$11,H23,$D$11) -> 41 | J23: 400 | K23: =ПрСостяз($C23,$E23,J$11,K$11,J23,$D$11) -> 51 | L23: 28 | M23: =ПрСостяз($C23,$E23,L$11,M$11,L23,$D$11) -> 54 | T23: 251
A24: 9 | B24: Захаренко Инна | C24: ж | D24: 2005 | E24: 15 | F24: 14.9 | G24: 111 | H24: 2.37 | I24: 41 | J24: 386 | K24: 46 | L24: 30 | M24: 59 | T24: 257
A25: 10 | B25: Моторная Настя | C25: ж | D25: 2005 | E25: 15 | F25: 15.9 | G25: 81 | H25: 2.45 | I25: 25 | J25: 367 | K25: 40 | L25: 26 | M25: 49 | T25: 195
A26: 11 | B26: Султанаева Алёна | C26: ж | D26: 2005 | E26: 15 | F26: 16.1 | G26: 75 | H26: 2.18 | I26: 79 | J26: 359 | K26: 37 | L26: 27 | M26: 52 | T26: 243
A27: 12 | B27: Мойсова Настя | C27: ж | D27: 2005 | E27: 15 | F27: 16.7 | G27: 63 | H27: 2.56 | I27: 7 | J27: 365 | K27: 39 | L27: 28 | M27: 54 | T27: 163
A30: Сумма очков ДЕВОЧКИ | F30: =G22+G23+G24+G25+G26+G27+G28+G29 -> 513 | H30: =I22+I23+I24+I25+I26+I27+I28+I29 -> 308 | J30: =K22+K23+K24+K25+K26+K27+K28+K29 -> 260 | L30: =M22+M23+M24+M25+M26+M27+M28+M29 -> 320 | T30: =SUM(T22:T29) -> 1401
B32: Директор МОБУ СОШ №25_______________________ | F32: Т.Г. Джикия

Sheet 9г
B2: ПРОТОКОЛ ЛЕГКАЯ АТЛЕТИКА
B3: школьный этап Всероссийских спортивных соревнований школьников «Президентские спортивные игры»
B4: МОБУ СОШ №25 | D4: 9Г класс | S4: 2021-04-12
B6: Фамилия, имя учащегося | C6: п | E6: воз | F6: Результат состязаний
A7: № | C7: о | D7: Год | E7: раст | F7: Бег 100м | H7: Бег 800м/600д | J7: Прыжок | L7: метание
A8: п/п | C8: л | D8: рождения | E8: (лет) | F8: (сек.) | H8: (мин.сек.) | J8: в длину с разбега(см) | L8: мяча 140г (м) | R8: ЭСТАФЕТА | T8: Итог
F9: рез-т | G9: очки | H9: рез-т | I9: очки | J9: рез-т | K9: очки | L9: рез-т | M9: очки
B10: Строки для настройки! | D10: Пересчёт | F10: м | G10: ж | H10: м | I10: ж | J10: м | K10: ж | L10: м | M10: ж | T10: 50/24/1//200/200//200/True
D11: 2 | F11: 12 | G11: 13 | H11: 2 | I11: 3 | J11: 6 | K11: 7 | L11: 10 | M11: 11
A12: 1 | B12: Шестаков Иван | C12: м | D12: 2005 | E12: 15 | F12: 14.1 | G12: =ПрСостяз($C12,$E12,F$11,G$11,F12,$D$11) -> 60 | H12: 3.09 | I12: =ПрСостяз($C12,$E12,H$11,I$11,H12,$D$11) -> 64 | J12: 426 | K12: =ПрСостяз($C12,$E12,J$11,K$11,J12,$D$11) -> 44 | L12: 31 | M12: =ПрСостяз($C12,$E12,L$11,M$11,L12,$D$11) -> 41 | T12: =SUM($G12+$I12+$M12+$K12+$O12+$Q12+$S12) -> 209
A13: 2 | B13: Ольховой Кирилл | C13: м | D13: 2005 | E13: 15 | F13: 14.3 | G13: =ПрСостяз($C13,$E13,F$11,G$11,F13,$D$11) -> 55 | H13: 3.18 | I13: =ПрСостяз($C13,$E13,H$11,I$11,H13,$D$11) -> 53 | J13: 435 | K13: =ПрСостяз($C13,$E13,J$11,K$11,J13,$D$11) -> 46 | L13: 30 | M13: =ПрСостяз($C13,$E13,L$11,M$11,L13,$D$11) -> 39 | T13: 193
A14: 3 | B14: Чапаниди Илья | C14: м | D14: 2005 | E14: 15 | F14: 14 | G14: 63 | H14: 3.01 | I14: 74 | J14: 426 | K14: 44 | L14: 35 | M14: 49 | R14: 2.42,9 | T14: 230
A15: 4 | B15: Устинов Никита | C15: м | D15: 2005 | E15: 15 | F15: 14 | G15: 63 | H15: 3.07 | I15: 67 | J15: 435 | K15: 46 | L15: 31 | M15: 41 | T15: 217
A16: 5 | B16: Елагин Савва | C16: м | D16: 2005 | E16: 15 | F16: 14.5 | G16: 51 | H16: 3.2 | I16: 51 | J16: 441 | K16: 48 | L16: 32 | M16: 43 | T16: 193
A17: 6 | B17: Сидоров Марк | C17: м | D17: 2005 | E17: 15 | F17: 14 | G17: 63 | H17: 3.23 | I17: 47 | J17: 431 | K17: 45 | L17: 30 | M17: 39 | T17: 194
A20: Сумма очков МАЛЬЧИКИ | F20: =G12+G13+G14+G15+G16+G17+G18+G19 -> 355 | H20: =I12+I13+I14+I15+I16+I17+I18+I19 -> 356 | J20: =K12+K13+K14+K15+K16+K17+K18+K19 -> 273 | L20: =M12+M13+M14+M15+M16+M17+M18+M19 -> 252 | T20: =SUM(T12:T19) -> 1236
A22: 7 | B22: Васина Ирина | C22: ж | D22: 2005 | E22: 15 | F22: 16.7 | G22: =ПрСостяз($C22,$E22,F$11,G$11,F22,$D$11) -> 63 | H22: 2.24 | I22: =ПрСостяз($C22,$E22,H$11,I$11,H22,$D$11) -> 67 | J22: 378 | K22: =ПрСостяз($C22,$E22,J$11,K$11,J22,$D$11) -> 44 | L22: 30 | M22: =ПрСостяз($C22,$E22,L$11,M$11,L22,$D$11) -> 59 | T22: =SUM($G22+$I22+$M22+$K22+$O22+$Q22+$S22) -> 233
A23: 8 | B23: Татулян Катя | C23: ж | D23: 2005 | E23: 15 | F23: 16 | G23: =ПрСостяз($C23,$E23,F$11,G$11,F23,$D$11) -> 78 | H23: 2.34 | I23: =ПрСостяз($C23,$E23,H$11,I$11,H23,$D$11) -> 47 | J23: 400 | K23: =ПрСостяз($C23,$E23,J$11,K$11,J23,$D$11) -> 51 | L23: 28 | M23: =ПрСостяз($C23,$E23,L$11,M$11,L23,$D$11) -> 54 | T23: 230
A24: 9 | B24: Иващенко София | C24: ж | D24: 2005 | E24: 15 | F24: 16 | G24: 78 | H24: 2.3 | I24: 55 | J24: 398 | K24: 50 | L24: 25 | M24: 47 | T24: 230
A25: 10 | B25: Демьянова София | C25: ж | D25: 2005 | E25: 15 | F25: 14.5 | G25: 122 | H25: 2.33 | I25: 49 | J25: 401 | K25: 51 | L25: 23 | M25: 42 | T25: 264
A26: 11 | B26: Мишина Мария | C26: ж | D26: 2005 | E26: 15 | F26: 14.1 | G26: 130 | H26: 2.31 | I26: 53 | J26: 396 | K26: 50 | L26: 26 | M26: 49 | T26: 282
A27: 12 | B27: Кужильная Никуоль | C27: ж | D27: 2005 | E27: 15 | F27: 16.5 | G27: 67 | H27: 2.3 | I27: 55 | J27: 376 | K27: 43 | L27: 27 | M27: 52 | T27: 217
A30: Сумма очков ДЕВОЧКИ | F30: =G22+G23+G24+G25+G26+G27+G28+G29 -> 538 | H30: =I22+I23+I24+I25+I26+I27+I28+I29 -> 326 | J30: =K22+K23+K24+K25+K26+K27+K28+K29 -> 289 | L30: =M22+M23+M24+M25+M26+M27+M28+M29 -> 303 | T30: =SUM(T22:T29) -> 1456
B32: Директор МОБУ СОШ №25_______________________ | F32: Т.Г. Джикия

Sheet 9д
B2: ПРОТОКОЛ ЛЕГКАЯ АТЛЕТИКА
B3: школьный этап Всероссийских спортивных соревнований школьников «Президентские спортивные игры»
B4: МОБУ СОШ №25 | D4: 9Д класс | S4: 2021-04-12
B6: Фамилия, имя учащегося | C6: п | E6: воз | F6: Результат состязаний
A7: № | C7: о | D7: Год | E7: раст | F7: Бег 100м | H7: Бег 800м/600д | J7: Прыжок | L7: метание
A8: п/п | C8: л | D8: рождения | E8: (лет) | F8: (сек.) | H8: (мин.сек.) | J8: в длину с разбега(см) | L8: мяча 140г (м) | R8: ЭСТАФЕТА | T8: Итог
F9: рез-т | G9: очки | H9: рез-т | I9: очки | J9: рез-т | K9: очки | L9: рез-т | M9: очки
B10: Строки для настройки! | D10: Пересчёт | F10: м | G10: ж | H10: м | I10: ж | J10: м | K10: ж | L10: м | M10: ж | T10: 50/24/1//200/200//200/True
D11: 2 | F11: 12 | G11: 13 | H11: 2 | I11: 3 | J11: 6 | K11: 7 | L11: 10 | M11: 11
A12: 1 | B12: Хмылёв Сергей | C12: м | D12: 2005 | E12: 15 | F12: 14.5 | G12: =ПрСостяз($C12,$E12,F$11,G$11,F12,$D$11) -> 51 | H12: 3.43 | I12: =ПрСостяз($C12,$E12,H$11,I$11,H12,$D$11) -> 22 | J12: 413 | K12: =ПрСостяз($C12,$E12,J$11,K$11,J12,$D$11) -> 41 | L12: 32 | M12: =ПрСостяз($C12,$E12,L$11,M$11,L12,$D$11) -> 43 | T12: =SUM($G12+$I12+$M12+$K12+$O12+$Q12+$S12) -> 157
A13: 2 | B13: Дебков Сергей | C13: м | D13: 2005 | E13: 15 | F13: 14.3 | G13: =ПрСостяз($C13,$E13,F$11,G$11,F13,$D$11) -> 55 | H13: 2.98 | I13: =ПрСостяз($C13,$E13,H$11,I$11,H13,$D$11) -> 76 | J13: 421 | K13: =ПрСостяз($C13,$E13,J$11,K$11,J13,$D$11) -> 43 | L13: 30 | M13: =ПрСостяз($C13,$E13,L$11,M$11,L13,$D$11) -> 39 | T13: 213
A14: 3 | B14: Панкратов Марат | C14: м | D14: 2005 | E14: 15 | F14: 14.6 | G14: 49 | H14: 2.97 | I14: 76 | J14: 423 | K14: 43 | L14: 29 | M14: 37 | R14: 2.43,1 | T14: 205
A15: 4 | B15: Гаспаров Артём | C15: м | D15: 2005 | E15: 15 | F15: 14.6 | G15: 49 | H15: 3.05 | I15: 69 | J15: 426 | K15: 44 | L15: 31 | M15: 41 | T15: 203
A16: 5 | B16: Хостиян Сергей | C16: м | D16: 2005 | E16: 15 | F16: 14.4 | G16: 53 | H16: 3.1 | I16: 63 | J16: 423 | K16: 43 | L16: 31 | M16: 41 | T16: 200
A17: 6 | B17: Мазманян Эдгард | C17: м | D17: 2005 | E17: 15 | F17: 14.7 | G17: 47 | H17: 3.23 | I17: 47 | J17: 419 | K17: 42 | L17: 30 | M17: 39 | T17: 175
A20: Сумма очков МАЛЬЧИКИ | F20: =G12+G13+G14+G15+G16+G17+G18+G19 -> 304 | H20: =I12+I13+I14+I15+I16+I17+I18+I19 -> 353 | J20: =K12+K13+K14+K15+K16+K17+K18+K19 -> 256 | L20: =M12+M13+M14+M15+M16+M17+M18+M19 -> 240 | T20: =SUM(T12:T19) -> 1153
A22: 7 | B22: Вихрова Даша | C22: ж | D22: 2005 | E22: 15 | F22: 15.4 | G22: =ПрСостяз($C22,$E22,F$11,G$11,F22,$D$11) -> 96 | H22: 2.26 | I22: =ПрСостяз($C22,$E22,H$11,I$11,H22,$D$11) -> 63 | J22: 379 | K22: =ПрСостяз($C22,$E22,J$11,K$11,J22,$D$11) -> 44 | L22: 29 | M22: =ПрСостяз($C22,$E22,L$11,M$11,L22,$D$11) -> 57 | T22: =SUM($G22+$I22+$M22+$K22+$O22+$Q22+$S22) -> 260
A23: 8 | B23: Рябухина Маша | C23: ж | D23: 2005 | E23: 15 | F23: 15.7 | G23: =ПрСостяз($C23,$E23,F$11,G$11,F23,$D$11) -> 87 | H23: 2.34 | I23: =ПрСостяз($C23,$E23,H$11,I$11,H23,$D$11) -> 47 | J23: 387 | K23: =ПрСостяз($C23,$E23,J$11,K$11,J23,$D$11) -> 47 | L23: 27 | M23: =ПрСостяз($C23,$E23,L$11,M$11,L23,$D$11) -> 52 | T23: 233
A24: 9 | B24: Стукалова София | C24: ж | D24: 2005 | E24: 15 | F24: 16.4 | G24: 69 | H24: 2.3 | I24: 55 | J24: 391 | K24: 48 | L24: 25 | M24: 47 | T24: 219
A25: 10 | B25: Олейник Лиза | C25: ж | D25: 2005 | E25: 15 | F25: 16.5 | G25: 67 | H25: 2.38 | I25: 39 | J25: 400 | K25: 51 | L25: 26 | M25: 49 | T25: 206
A26: 11 | B26: Женжерук Саша | C26: ж | D26: 2005 | E26: 15 | F26: 15.8 | G26: 84 | H26: 2.42 | I26: 31 | J26: 401 | K26: 51 | L26: 30 | M26: 59 | T26: 225
A27: 12 | B27: Вернер София | C27: ж | D27: 2005 | E27: 15 | F27: 16.4 | G27: 69 | H27: 2.21 | I27: 73 | J27: 389 | K27: 47 | L27: 28 | M27: 54 | T27: 243
A30: Сумма очков ДЕВОЧКИ | F30: =G22+G23+G24+G25+G26+G27+G28+G29 -> 472 | H30: =I22+I23+I24+I25+I26+I27+I28+I29 -> 308 | J30: =K22+K23+K24+K25+K26+K27+K28+K29 -> 288 | L30: =M22+M23+M24+M25+M26+M27+M28+M29 -> 318 | T30: =SUM(T22:T29) -> 1386
B32: Директор МОБУ СОШ №25_______________________ | F32: Т.Г. Джикия

Sheet 9е
B2: ПРОТОКОЛ ЛЕГКАЯ АТЛЕТИКА
B3: школьный этап Всероссийских спортивных соревнований школьников «Президентские спортивные игры»
B4: МОБУ СОШ №25 | D4: 9Е класс | S4: 2021-04-12
B6: Фамилия, имя учащегося | C6: п | E6: воз | F6: Результат состязаний
A7: № | C7: о | D7: Год | E7: раст | F7: Бег 100м | H7: Бег 800м/600д | J7: Прыжок | L7: метание
A8: п/п | C8: л | D8: рождения | E8: (лет) | F8: (сек.) | H8: (мин.сек.) | J8: в длину с разбега(см) | L8: мяча 140г (м) | R8: ЭСТАФЕТА | T8: Итог
F9: рез-т | G9: очки | H9: рез-т | I9: очки | J9: рез-т | K9: очки | L9: рез-т | M9: очки
B10: Строки для настройки! | D10: Пересчёт | F10: м | G10: ж | H10: м | I10: ж | J10: м | K10: ж | L10: м | M10: ж | T10: 50/24/1//200/200//200/True
D11: 2 | F11: 12 | G11: 13 | H11: 2 | I11: 3 | J11: 6 | K11: 7 | L11: 10 | M11: 11
A12: 1 | B12: Кощенко Артём | C12: м | D12: 2005 | E12: 15 | F12: 14.2 | G12: =ПрСостяз($C12,$E12,F$11,G$11,F12,$D$11) -> 57 | H12: 2.56 | I12: =ПрСостяз($C12,$E12,H$11,I$11,H12,$D$11) -> 81 | J12: 435 | K12: =ПрСостяз($C12,$E12,J$11,K$11,J12,$D$11) -> 46 | L12: 40 | M12: =ПрСостяз($C12,$E12,L$11,M$11,L12,$D$11) -> 62 | T12: =SUM($G12+$I12+$M12+$K12+$O12+$Q12+$S12) -> 246
A13: 2 | B13: Виноградов Костя | C13: м | D13: 2005 | E13: 15 | F13: 14.5 | G13: =ПрСостяз($C13,$E13,F$11,G$11,F13,$D$11) -> 51 | H13: 3.12 | I13: =ПрСостяз($C13,$E13,H$11,I$11,H13,$D$11) -> 61 | J13: 439 | K13: =ПрСостяз($C13,$E13,J$11,K$11,J13,$D$11) -> 47 | L13: 34 | M13: =ПрСостяз($C13,$E13,L$11,M$11,L13,$D$11) -> 47 | T13: 206
A14: 3 | B14: Месхи Тимур | C14: м | D14: 2005 | E14: 15 | F14: 14 | G14: 63 | H14: 3.16 | I14: 56 | J14: 440 | K14: 47 | L14: 36 | M14: 52 | R14: 2.43,8 | T14: 218
A15: 4 | B15: Скрынников Женя | C15: м | D15: 2005 | E15: 15 | F15: 13.9 | G15: 66 | H15: 3.24 | I15: 46 | J15: 431 | K15: 45 | L15: 35 | M15: 49 | T15: 206
A16: 5 | B16: Ковжик Миша | C16: м | D16: 2005 | E16: 15 | F16: 14 | G16: 63 | H16: 3.19 | I16: 52 | J16: 437 | K16: 47 | L16: 30 | M16: 39 | T16: 201
A17: 6 | B17: Казакуло Даниил | C17: м | D17: 2005 | E17: 15 | F17: 14.1 | G17: 60 | H17: 3.27 | I17: 42 | J17: 446 | K17: 49 | L17: 32 | M17: 43 | T17: 194
A20: Сумма очков МАЛЬЧИКИ | F20: =G12+G13+G14+G15+G16+G17+G18+G19 -> 360 | H20: =I12+I13+I14+I15+I16+I17+I18+I19 -> 338 | J20: =K12+K13+K14+K15+K16+K17+K18+K19 -> 281 | L20: =M12+M13+M14+M15+M16+M17+M18+M19 -> 292 | T20: =SUM(T12:T19) -> 1271
A22: 7 | B22: Спирякова Вероника | C22: ж | D22: 2006 | E22: 15 | F22: 14 | G22: =ПрСостяз($C22,$E22,F$11,G$11,F22,$D$11) -> 132 | H22: 2.21 | I22: =ПрСостяз($C22,$E22,H$11,I$11,H22,$D$11) -> 73 | J22: 410 | K22: =ПрСостяз($C22,$E22,J$11,K$11,J22,$D$11) -> 54 | L22: 30 | M22: =ПрСостяз($C22,$E22,L$11,M$11,L22,$D$11) -> 59 | T22: =SUM($G22+$I22+$M22+$K22+$O22+$Q22+$S22) -> 318
A23: 8 | B23: Железная Саша | C23: ж | D23: 2005 | E23: 15 | F23: 16.1 | G23: =ПрСостяз($C23,$E23,F$11,G$11,F23,$D$11) -> 75 | H23: 2.31 | I23: =ПрСостяз($C23,$E23,H$11,I$11,H23,$D$11) -> 53 | J23: 387 | K23: =ПрСостяз($C23,$E23,J$11,K$11,J23,$D$11) -> 47 | L23: 25 | M23: =ПрСостяз($C23,$E23,L$11,M$11,L23,$D$11) -> 47 | T23: 222
A24: 9 | B24: Теслова Таня | C24: ж | D24: 2005 | E24: 15 | F24: 15.5 | G24: 93 | H24: 2.33 | I24: 49 | J24: 386 | K24: 46 | L24: 30 | M24: 59 | T24: 247
A25: 10 | B25: Черныщшова Арина | C25: ж | D25: 2005 | E25: 15 | F25: 15.6 | G25: 90 | H25: 2.35 | I25: 45 | J25: 398 | K25: 50 | L25: 30 | M25: 59 | T25: 244
A26: 11 | B26: Манучарова Настя | C26: ж | D26: 2005 | E26: 15 | F26: 16 | G26: 78 | H26: 2.37 | I26: 41 | J26: 400 | K26: 51 | L26: 25 | M26: 47 | T26: 217
A27: 12 | B27: Минокова Ксения | C27: ж | D27: 2005 | E27: 15 | F27: 16.4 | G27: 69 | H27: 2.32 | I27: 51 | J27: 396 | K27: 50 | L27: 27 | M27: 52 | T27: 222
A30: Сумма очков ДЕВОЧКИ | F30: =G22+G23+G24+G25+G26+G27+G28+G29 -> 537 | H30: =I22+I23+I24+I25+I26+I27+I28+I29 -> 312 | J30: =K22+K23+K24+K25+K26+K27+K28+K29 -> 298 | L30: =M22+M23+M24+M25+M26+M27+M28+M29 -> 323 | T30: =SUM(T22:T29) -> 1470
B32: Директор МОБУ СОШ №25_______________________ | F32: Т.Г. Джикия

Sheet 9а
B2: ПРОТОКОЛ ЛЕГКАЯ АТЛЕТИКА
B3: школьный этап Всероссийских спортивных соревнований школьников «Президентские спортивные игры»
B4: МОБУ СОШ №25 | D4: 9А класс | S4: 2021-04-12
B6: Фамилия, имя учащегося | C6: п | E6: воз | F6: Результат состязаний
A7: № | C7: о | D7: Год | E7: раст | F7: Бег 100м | H7: Бег 800м/600д | J7: Прыжок | L7: метание
A8: п/п | C8: л | D8: рождения | E8: (лет) | F8: (сек.) | H8: (мин.сек.) | J8: в длину с разбега(см) | L8: мяча 140г (м) | R8: ЭСТАФЕТА | T8: Итог
F9: рез-т | G9: очки | H9: рез-т | I9: очки | J9: рез-т | K9: очки | L9: рез-т | M9: очки
B10: Строки для настройки! | D10: Пересчёт | F10: м | G10: ж | H10: м | I10: ж | J10: м | K10: ж | L10: м | M10: ж | T10: 50/24/1//200/200//200/True
D11: 2 | F11: 12 | G11: 13 | H11: 2 | I11: 3 | J11: 6 | K11: 7 | L11: 10 | M11: 11
A12: 1 | B12: Галактионов Владимир | C12: м | D12: 2005 | E12: 15 | F12: 15.1 | G12: =ПрСостяз($C12,$E12,F$11,G$11,F12,$D$11) -> 39 | H12: 2.56 | I12: =ПрСостяз($C12,$E12,H$11,I$11,H12,$D$11) -> 81 | J12: 423 | K12: =ПрСостяз($C12,$E12,J$11,K$11,J12,$D$11) -> 43 | L12: 34 | M12: =ПрСостяз($C12,$E12,L$11,M$11,L12,$D$11) -> 47 | T12: =SUM($G12+$I12+$M12+$K12+$O12+$Q12+$S12) -> 210
A13: 2 | B13: Долгих Лев | C13: м | D13: 2005 | E13: 15 | F13: 13.8 | G13: =ПрСостяз($C13,$E13,F$11,G$11,F13,$D$11) -> 69 | H13: 3.01 | I13: =ПрСостяз($C13,$E13,H$11,I$11,H13,$D$11) -> 74 | J13: 445 | K13: =ПрСостяз($C13,$E13,J$11,K$11,J13,$D$11) -> 49 | L13: 38 | M13: =ПрСостяз($C13,$E13,L$11,M$11,L13,$D$11) -> 57 | T13: 249
A14: 3 | B14: Дагдаверян Виталий | C14: м | D14: 2005 | E14: 15 | F14: 14.4 | G14: 53 | H14: 3.34 | I14: 33 | J14: 456 | K14: 51 | L14: 33 | M14: 45 | R14: 2.44,5 | T14: 182
A15: 4 | B15: Воробьев Михаил | C15: м | D15: 2005 | E15: 15 | F15: 14.9 | G15: 43 | H15: 3.02 | I15: 73 | J15: 458 | K15: 52 | L15: 31 | M15: 41 | T15: 209
A16: 5 | B16: Бабич Максим | C16: м | D16: 2005 | E16: 15 | F16: 15 | G16: 41 | H16: 3.23 | I16: 47 | J16: 453 | K16: 51 | L16: 30 | M16: 39 | T16: 178
A17: 6 | B17: Козлов Андрей | C17: м | D17: 2005 | E17: 15 | F17: 14.8 | G17: 45 | H17: 3.28 | I17: 41 | J17: 451 | K17: 50 | L17: 35 | M17: 49 | T17: 185
A20: Сумма очков МАЛЬЧИКИ | F20: =G12+G13+G14+G15+G16+G17+G18+G19 -> 290 | H20: =I12+I13+I14+I15+I16+I17+I18+I19 -> 349 | J20: =K12+K13+K14+K15+K16+K17+K18+K19 -> 296 | L20: =M12+M13+M14+M15+M16+M17+M18+M19 -> 278 | T20: =SUM(T12:T19) -> 1213
A22: 7 | B22: Покрова Катя | C22: ж | D22: 2005 | E22: 15 | F22: 14.8 | G22: =ПрСостяз($C22,$E22,F$11,G$11,F22,$D$11) -> 114 | H22: 1.56 | I22: =ПрСостяз($C22,$E22,H$11,I$11,H22,$D$11) -> 123 | J22: 400 | K22: =ПрСостяз($C22,$E22,J$11,K$11,J22,$D$11) -> 51 | L22: 30 | M22: =ПрСостяз($C22,$E22,L$11,M$11,L22,$D$11) -> 59 | T22: =SUM($G22+$I22+$M22+$K22+$O22+$Q22+$S22) -> 347
A23: 8 | B23: Арчвадзе Вероника | C23: ж | D23: 2005 | E23: 15 | F23: 15.4 | G23: =ПрСостяз($C23,$E23,F$11,G$11,F23,$D$11) -> 96 | H23: 2.02 | I23: =ПрСостяз($C23,$E23,H$11,I$11,H23,$D$11) -> 111 | J23: 359 | K23: =ПрСостяз($C23,$E23,J$11,K$11,J23,$D$11) -> 37 | L23: 29 | M23: =ПрСостяз($C23,$E23,L$11,M$11,L23,$D$11) -> 57 | T23: 301
A24: 9 | B24: Ильяных Настя | C24: ж | D24: 2005 | E24: 15 | F24: 15.8 | G24: 84 | H24: 2.26 | I24: 63 | J24: 378 | K24: 44 | L24: 28 | M24: 54 | T24: 245
A25: 10 | B25: Каменева Олеся | C25: ж | D25: 2005 | E25: 15 | F25: 15.9 | G25: 81 | H25: 2.45 | I25: 25 | J25: 401 | K25: 51 | L25: 26 | M25: 49 | T25: 206
A26: 11 | B26: Иванова Наташа | C26: ж | D26: 2005 | E26: 15 | F26: 16 | G26: 78 | H26: 2.54 | I26: 11 | J26: 381 | K26: 45 | L26: 24 | M26: 44 | T26: 178
A27: 12 | B27: Буюклян Алла | C27: ж | D27: 2005 | E27: 15 | F27: 16.5 | G27: 67 | H27: 2.39 | I27: 37 | J27: 397 | K27: 50 | L27: 22 | M27: 39 | T27: 193
A30: Сумма очков ДЕВОЧКИ | F30: =G22+G23+G24+G25+G26+G27+G28+G29 -> 520 | H30: =I22+I23+I24+I25+I26+I27+I28+I29 -> 370 | J30: =K22+K23+K24+K25+K26+K27+K28+K29 -> 278 | L30: =M22+M23+M24+M25+M26+M27+M28+M29 -> 302 | T30: =SUM(T22:T29) -> 1470
B32: Директор МОБУ СОШ №25_______________________ | F32: Т.Г. Джикия

Sheet 10б
B2: ПРОТОКОЛ ЛЕГКАЯ АТЛЕТИКА
B3: школьный этап Всероссийских спортивных соревнований школьников «Президентские спортивные игры»
B4: МОБУ СОШ №25 | D4: 10Б класс | S4: 2021-04-12
B6: Фамилия, имя учащегося | C6: п | E6: воз | F6: Результат состязаний
A7: № | C7: о | D7: Год | E7: раст | F7: Бег 100м | H7: Бег 800м/600д | J7: Прыжок | L7: метание
A8: п/п | C8: л | D8: рождения | E8: (лет) | F8: (сек.) | H8: (мин.сек.) | J8: в длину с разбега(см) | L8: мяча 140г (м) | R8: ЭСТАФЕТА | T8: Итог
F9: рез-т | G9: очки | H9: рез-т | I9: очки | J9: рез-т | K9: очки | L9: рез-т | M9: очки
B10: Строки для настройки! | D10: Пересчёт | F10: м | G10: ж | H10: м | I10: ж | J10: м | K10: ж | L10: м | M10: ж | T10: 50/24/1//200/200//200/True
D11: 2 | F11: 12 | G11: 13 | H11: 2 | I11: 3 | J11: 6 | K11: 7 | L11: 10 | M11: 11
A12: 1 | B12: Аведесян Виталий | C12: м | D12: 2004 | E12: 15 | F12: 14.2 | G12: =ПрСостяз($C12,$E12,F$11,G$11,F12,$D$11) -> 57 | H12: 3.12 | I12: =ПрСостяз($C12,$E12,H$11,I$11,H12,$D$11) -> 61 | J12: 456 | K12: =ПрСостяз($C12,$E12,J$11,K$11,J12,$D$11) -> 51 | L12: 43 | M12: =ПрСостяз($C12,$E12,L$11,M$11,L12,$D$11) -> 69 | T12: =SUM($G12+$I12+$M12+$K12+$O12+$Q12+$S12) -> 238
A13: 2 | B13: Аведов Глеб | C13: м | D13: 2004 | E13: 15 | F13: 13.9 | G13: =ПрСостяз($C13,$E13,F$11,G$11,F13,$D$11) -> 66 | H13: 3.21 | I13: =ПрСостяз($C13,$E13,H$11,I$11,H13,$D$11) -> 49 | J13: 445 | K13: =ПрСостяз($C13,$E13,J$11,K$11,J13,$D$11) -> 49 | L13: 33 | M13: =ПрСостяз($C13,$E13,L$11,M$11,L13,$D$11) -> 45 | T13: 209
A14: 3 | B14: Адамов Андрей | C14: м | D14: 2004 | E14: 15 | F14: 14.3 | G14: 55 | H14: 3.2 | I14: 51 | J14: 475 | K14: 58 | L14: 34 | M14: 47 | R14: 2.41,7 | T14: 211
A15: 4 | B15: Евдокимов Ярослав | C15: м | D15: 2004 | E15: 15 | F15: 14.6 | G15: 49 | H15: 3.17 | I15: 54 | J15: 454 | K15: 51 | L15: 30 | M15: 39 | T15: 193
A16: 5 | B16: Дулгиридис Виталий | C16: м | D16: 2005 | E16: 15 | F16: 14.1 | G16: 60 | H16: 3.19 | I16: 52 | J16: 434 | K16: 46 | L16: 31 | M16: 41 | T16: 199
A17: 6 | B17: Демитрчян Сергей | C17: м | D17: 2004 | E17: 15 | F17: 14.5 | G17: 51 | H17: 3.21 | I17: 49 | J17: 453 | K17: 51 | L17: 33 | M17: 45 | T17: 196
A20: Сумма очков МАЛЬЧИКИ | F20: =G12+G13+G14+G15+G16+G17+G18+G19 -> 338 | H20: =I12+I13+I14+I15+I16+I17+I18+I19 -> 316 | J20: =K12+K13+K14+K15+K16+K17+K18+K19 -> 306 | L20: =M12+M13+M14+M15+M16+M17+M18+M19 -> 286 | T20: =SUM(T12:T19) -> 1246
A22: 7 | B22: Раганян Лена | C22: ж | D22: 2005 | E22: 15 | F22: 14.2 | G22: =ПрСостяз($C22,$E22,F$11,G$11,F22,$D$11) -> 128 | H22: 2.23 | I22: =ПрСостяз($C22,$E22,H$11,I$11,H22,$D$11) -> 69 | J22: 373 | K22: =ПрСостяз($C22,$E22,J$11,K$11,J22,$D$11) -> 42 | L22: 30 | M22: =ПрСостяз($C22,$E22,L$11,M$11,L22,$D$11) -> 59 | T22: =SUM($G22+$I22+$M22+$K22+$O22+$Q22+$S22) -> 298
A23: 8 | B23: Первакова Ярослава | C23: ж | D23: 2004 | E23: 15 | F23: 14.5 | G23: =ПрСостяз($C23,$E23,F$11,G$11,F23,$D$11) -> 122 | H23: 2.34 | I23: =ПрСостяз($C23,$E23,H$11,I$11,H23,$D$11) -> 47 | J23: 401 | K23: =ПрСостяз($C23,$E23,J$11,K$11,J23,$D$11) -> 51 | L23: 27 | M23: =ПрСостяз($C23,$E23,L$11,M$11,L23,$D$11) -> 52 | T23: 272
A24: 9 | B24: Звягинцева Валерия | C24: ж | D24: 2004 | E24: 15 | F24: 14.3 | G24: 126 | H24: 2.32 | I24: 51 | J24: 403 | K24: 52 | L24: 31 | M24: 62 | T24: 291
A25: 10 | B25: Шулякова Полина | C25: ж | D25: 2004 | E25: 15 | F25: 14.9 | G25: 111 | H25: 2.33 | I25: 49 | J25: 400 | K25: 51 | L25: 35 | M25: 72 | T25: 283
A26: 11 | B26: Руденко Анна | C26: ж | D26: 2005 | E26: 15 | F26: 14.3 | G26: 126 | H26: 2.3 | I26: 55 | J26: 402 | K26: 52 | L26: 28 | M26: 54 | T26: 287
A27: 12 | B27: Карчава Софико | C27: ж | D27: 2004 | E27: 15 | F27: 15.9 | G27: 81 | H27: 2.28 | I27: 59 | J27: 356 | K27: 36 | L27: 26 | M27: 49 | T27: 225
A30: Сумма очков ДЕВОЧКИ | F30: =G22+G23+G24+G25+G26+G27+G28+G29 -> 694 | H30: =I22+I23+I24+I25+I26+I27+I28+I29 -> 330 | J30: =K22+K23+K24+K25+K26+K27+K28+K29 -> 284 | L30: =M22+M23+M24+M25+M26+M27+M28+M29 -> 348 | T30: =SUM(T22:T29) -> 1656
B32: Директор МОБУ СОШ №25______________________ | F32: Т.Г. Джикия

Sheet 10в
B2: ПРОТОКОЛ ЛЕГКАЯ АТЛЕТИКА
B3: школьный этап Всероссийских спортивных соревнований школьников «Президентские спортивные игры»
B4: МОБУ СОШ №25 | D4: 10В класс | S4: 2021-04-12
B6: Фамилия, имя учащегося | C6: п | E6: воз | F6: Результат состязаний
A7: № | C7: о | D7: Год | E7: раст | F7: Бег 100м | H7: Бег 800м/600д | J7: Прыжок | L7: метание
A8: п/п | C8: л | D8: рождения | E8: (лет) | F8: (сек.) | H8: (мин.сек.) | J8: в длину с разбега(см) | L8: мяча 140г (м) | R8: ЭСТАФЕТА | T8: Итог
F9: рез-т | G9: очки | H9: рез-т | I9: очки | J9: рез-т | K9: очки | L9: рез-т | M9: очки
B10: Строки для настройки! | D10: Пересчёт | F10: м | G10: ж | H10: м | I10: ж | J10: м | K10: ж | L10: м | M10: ж | T10: 50/24/1//200/200//200/True
D11: 2 | F11: 12 | G11: 13 | H11: 2 | I11: 3 | J11: 6 | K11: 7 | L11: 10 | M11: 11
A12: 1 | B12: Косьян Руслан | C12: м | D12: 2004 | E12: 16 | F12: 14.1 | G12: =ПрСостяз($C12,$E12,F$11,G$11,F12,$D$11) -> 60 | H12: 3.12 | I12: =ПрСостяз($C12,$E12,H$11,I$11,H12,$D$11) -> 61 | J12: 456 | K12: =ПрСостяз($C12,$E12,J$11,K$11,J12,$D$11) -> 51 | L12: 34 | M12: =ПрСостяз($C12,$E12,L$11,M$11,L12,$D$11) -> 47 | T12: =SUM($G12+$I12+$M12+$K12+$O12+$Q12+$S12) -> 219
A13: 2 | B13: Бродников Даниил | C13: м | D13: 2004 | E13: 16 | F13: 14 | G13: =ПрСостяз($C13,$E13,F$11,G$11,F13,$D$11) -> 63 | H13: 3.15 | I13: =ПрСостяз($C13,$E13,H$11,I$11,H13,$D$11) -> 57 | J13: 441 | K13: =ПрСостяз($C13,$E13,J$11,K$11,J13,$D$11) -> 48 | L13: 38 | M13: =ПрСостяз($C13,$E13,L$11,M$11,L13,$D$11) -> 57 | T13: 225
A14: 3 | B14: Будилов Саша | C14: м | D14: 2004 | E14: 16 | F14: 14 | G14: 63 | H14: 3.17 | I14: 54 | J14: 435 | K14: 46 | L14: 31 | M14: 41 | R14: 2.41,9 | T14: 204
A15: 4 | B15: Цатурьян Давид | C15: м | D15: 2004 | E15: 16 | F15: 14.2 | G15: 57 | H15: 3.2 | I15: 51 | J15: 452 | K15: 50 | L15: 30 | M15: 39 | T15: 197
A16: 5 | B16: Синица Егор | C16: м | D16: 2004 | E16: 16 | F16: 14.1 | G16: 60 | H16: 3.22 | I16: 48 | J16: 423 | K16: 43 | L16: 33 | M16: 45 | T16: 196
A17: 6 | C17: м | G17: 0 | I17: 0 | K17: 0 | M17: 0 | T17: 0
A20: Сумма очков МАЛЬЧИКИ | F20: =G12+G13+G14+G15+G16+G17+G18+G19 -> 303 | H20: =I12+I13+I14+I15+I16+I17+I18+I19 -> 271 | J20: =K12+K13+K14+K15+K16+K17+K18+K19 -> 238 | L20: =M12+M13+M14+M15+M16+M17+M18+M19 -> 229 | T20: =SUM(T12:T19) -> 1041
A22: 7 | B22: Литвинова Саша | C22: ж | D22: 2004 | E22: 16 | F22: 14 | G22: =ПрСостяз($C22,$E22,F$11,G$11,F22,$D$11) -> 132 | H22: 2.16 | I22: =ПрСостяз($C22,$E22,H$11,I$11,H22,$D$11) -> 83 | J22: 401 | K22: =ПрСостяз($C22,$E22,J$11,K$11,J22,$D$11) -> 51 | L22: 41 | M22: =ПрСостяз($C22,$E22,L$11,M$11,L22,$D$11) -> 88 | T22: =SUM($G22+$I22+$M22+$K22+$O22+$Q22+$S22) -> 354
A23: 8 | B23: Иванова Лиза | C23: ж | D23: 2004 | E23: 16 | F23: 14 | G23: =ПрСостяз($C23,$E23,F$11,G$11,F23,$D$11) -> 132 | H23: 2.23 | I23: =ПрСостяз($C23,$E23,H$11,I$11,H23,$D$11) -> 69 | J23: 399 | K23: =ПрСостяз($C23,$E23,J$11,K$11,J23,$D$11) -> 51 | L23: 33 | M23: =ПрСостяз($C23,$E23,L$11,M$11,L23,$D$11) -> 67 | T23: 319
A24: 9 | B24: Парахненко Лиза | C24: ж | D24: 2004 | E24: 16 | F24: 13.9 | G24: 134 | H24: 2.35 | I24: 45 | J24: 399 | K24: 51 | L24: 40 | M24: 84 | T24: 314
A25: 10 | B25: Змеева Ксения | C25: ж | D25: 2004 | E25: 16 | F25: 14.5 | G25: 122 | H25: 2.4 | I25: 35 | J25: 389 | K25: 47 | L25: 30 | M25: 59 | T25: 263
A26: 11 | B26: Иванчукова Анна | C26: ж | D26: 2005 | E26: 15 | F26: 14 | G26: 132 | H26: 2.26 | I26: 63 | J26: 400 | K26: 51 | L26: 26 | M26: 49 | T26: 295
A27: 12 | B27: Радионова София | C27: ж | D27: 2004 | E27: 16 | F27: 15.4 | G27: 96 | H27: 2.47 | I27: 22 | J27: 376 | K27: 43 | L27: 24 | M27: 44 | T27: 205
A30: Сумма очков ДЕВОЧКИ | F30: =G22+G23+G24+G25+G26+G27+G28+G29 -> 748 | H30: =I22+I23+I24+I25+I26+I27+I28+I29 -> 317 | J30: =K22+K23+K24+K25+K26+K27+K28+K29 -> 294 | L30: =M22+M23+M24+M25+M26+M27+M28+M29 -> 391 | T30: =SUM(T22:T29) -> 1750
B32: Директор МОБУ СОШ №25_______________________ | F32: Т.Г. Джикия

Sheet 10а
B2: ПРОТОКОЛ ЛЕГКАЯ АТЛЕТИКА
B3: школьный этап Всероссийских спортивных соревнований школьников «Президентские спортивные игры»
B4: МОБУ СОШ №25 | D4: 10А класс | S4: 2021-04-12
B6: Фамилия, имя учащегося | C6: п | E6: воз | F6: Результат состязаний
A7: № | C7: о | D7: Год | E7: раст | F7: Бег 100м | H7: Бег 800м/600д | J7: Прыжок | L7: метание
A8: п/п | C8: л | D8: рождения | E8: (лет) | F8: (сек.) | H8: (мин.сек.) | J8: в длину с разбега(см) | L8: мяча 140г (м) | R8: ЭСТАФЕТА | T8: Итог
F9: рез-т | G9: очки | H9: рез-т | I9: очки | J9: рез-т | K9: очки | L9: рез-т | M9: очки
B10: Строки для настройки! | D10: Пересчёт | F10: м | G10: ж | H10: м | I10: ж | J10: м | K10: ж | L10: м | M10: ж | T10: 50/24/1//200/200//200/True
D11: 2 | F11: 12 | G11: 13 | H11: 2 | I11: 3 | J11: 6 | K11: 7 | L11: 10 | M11: 11
A12: 1 | B12: Давтян Андрей | C12: м | D12: 2004 | E12: 16 | F12: 14.2 | G12: =ПрСостяз($C12,$E12,F$11,G$11,F12,$D$11) -> 57 | H12: 3.13 | I12: =ПрСостяз($C12,$E12,H$11,I$11,H12,$D$11) -> 59 | J12: 434 | K12: =ПрСостяз($C12,$E12,J$11,K$11,J12,$D$11) -> 46 | L12: 41 | M12: =ПрСостяз($C12,$E12,L$11,M$11,L12,$D$11) -> 64 | T12: =SUM($G12+$I12+$M12+$K12+$O12+$Q12+$S12) -> 226
A13: 2 | B13: Алборов Руслан | C13: м | D13: 2004 | E13: 16 | F13: 14.1 | G13: =ПрСостяз($C13,$E13,F$11,G$11,F13,$D$11) -> 60 | H13: 3.21 | I13: =ПрСостяз($C13,$E13,H$11,I$11,H13,$D$11) -> 49 | J13: 432 | K13: =ПрСостяз($C13,$E13,J$11,K$11,J13,$D$11) -> 45 | L13: 45 | M13: =ПрСостяз($C13,$E13,L$11,M$11,L13,$D$11) -> 74 | T13: 228
A14: 3 | B14: Коротицкий Саша | C14: м | D14: 2004 | E14: 16 | F14: 14.1 | G14: 60 | H14: 3.2 | I14: 51 | J14: 341 | K14: 23 | L14: 30 | M14: 39 | R14: 2.41,3 | T14: 173
A15: 4 | B15: Лалаян Рауль | C15: м | D15: 2004 | E15: 16 | F15: 14.4 | G15: 53 | H15: 3.23 | I15: 47 | J15: 421 | K15: 43 | L15: 31 | M15: 41 | T15: 184
A16: 5 | B16: Мамаев Магамед | C16: м | D16: 2004 | E16: 16 | F16: 13.9 | G16: 66 | H16: 3.21 | I16: 49 | J16: 443 | K16: 48 | L16: 41 | M16: 64 | T16: 227
A17: 6 | B17: Нарубин Максим | C17: м | D17: 2004 | E17: 16 | F17: 14 | G17: 63 | H17: 3.24 | I17: 46 | J17: 451 | K17: 50 | L17: 45 | M17: 74 | T17: 233
A20: Сумма очков МАЛЬЧИКИ | F20: =G12+G13+G14+G15+G16+G17+G18+G19 -> 359 | H20: =I12+I13+I14+I15+I16+I17+I18+I19 -> 301 | J20: =K12+K13+K14+K15+K16+K17+K18+K19 -> 255 | L20: =M12+M13+M14+M15+M16+M17+M18+M19 -> 356 | T20: =SUM(T12:T19) -> 1271
A22: 7 | B22: Андрюшкевич Стефания | C22: ж | D22: 2004 | E22: 16 | F22: 15.4 | G22: =ПрСостяз($C22,$E22,F$11,G$11,F22,$D$11) -> 96 | H22: 2.34 | I22: =ПрСостяз($C22,$E22,H$11,I$11,H22,$D$11) -> 47 | J22: 398 | K22: =ПрСостяз($C22,$E22,J$11,K$11,J22,$D$11) -> 50 | L22: 30 | M22: =ПрСостяз($C22,$E22,L$11,M$11,L22,$D$11) -> 59 | T22: =SUM($G22+$I22+$M22+$K22+$O22+$Q22+$S22) -> 252
A23: 8 | B23: Абоимова Аделина | C23: ж | D23: 2004 | E23: 16 | F23: 16 | G23: =ПрСостяз($C23,$E23,F$11,G$11,F23,$D$11) -> 78 | H23: 2.3 | I23: =ПрСостяз($C23,$E23,H$11,I$11,H23,$D$11) -> 55 | J23: 378 | K23: =ПрСостяз($C23,$E23,J$11,K$11,J23,$D$11) -> 44 | L23: 24 | M23: =ПрСостяз($C23,$E23,L$11,M$11,L23,$D$11) -> 44 | T23: 221
A24: 9 | B24: Лосева Наташа | C24: ж | D24: 2004 | E24: 16 | F24: 16.1 | G24: 75 | H24: 2.31 | I24: 53 | J24: 375 | K24: 43 | L24: 29 | M24: 57 | T24: 228
A25: 10 | B25: Трехлебова Валерия | C25: ж | D25: 2004 | E25: 16 | F25: 16.4 | G25: 69 | H25: 2.41 | I25: 33 | J25: 395 | K25: 49 | L25: 27 | M25: 52 | T25: 203
A26: 11 | B26: Шувалова Маргарита | C26: ж | D26: 2004 | E26: 16 | F26: 15.9 | G26: 81 | H26: 2.4 | I26: 35 | J26: 400 | K26: 51 | L26: 28 | M26: 54 | T26: 221
A27: 12 | B27: Нагулян София | C27: ж | D27: 2004 | E27: 16 | F27: 16.4 | G27: 69 | H27: 2.39 | I27: 37 | J27: 399 | K27: 51 | L27: 29 | M27: 57 | T27: 214
A30: Сумма очков ДЕВОЧКИ | F30: =G22+G23+G24+G25+G26+G27+G28+G29 -> 468 | H30: =I22+I23+I24+I25+I26+I27+I28+I29 -> 260 | J30: =K22+K23+K24+K25+K26+K27+K28+K29 -> 288 | L30: =M22+M23+M24+M25+M26+M27+M28+M29 -> 323 | T30: =SUM(T22:T29) -> 1339
B32: Директор МОБУ СОШ №25_______________________ | F32: Т.Г. Джикия

Sheet 15
A1: 15
A2: Очки | B2: Бег 800м/600д (мин сек) | F2: Прыжок с разбега (см) | J2: Метание мяча 140 гр (м) | L2: Бег 100 м (сек) | M2: 30 м
B3: м | C3: ж | D3: м | E3: ж | F3: м | G3: ж | H3: м | I3: ж | J3: м | K3: ж | L3: м | M3: ж
A4: 150 | B4: 2.01 | C4: 1.43 | F4: 660 | G4: 555 | J4: 70 | K4: 58 | L4: 11.1 | M4: 13.1
A5: 149 | B5: - | C5: - | F5: 659 | G5: 554 | J5: 69.7 | K5: 57.9 | L5: - | M5: -
A6: 148 | B6: 2.02 | C6: - | F6: 658 | G6: 553 | J6: 69.5 | K6: 57.8 | L6: - | M6: 13.2
A7: 147 | B7: 2.03 | C7: 1.44 | F7: 657 | G7: 552 | J7: 69.3 | K7: 57.7 | L7: 11.2 | M7: -
A8: 146 | B8: 2.04 | C8: - | F8: 656 | G8: 551 | J8: 69.1 | K8: 57.6 | L8: - | M8: 13.3
A9: 145 | B9: - | C9: 1.45 | F9: 655 | G9: 550 | J9: 68.9 | K9: 57.4 | L9: - | M9: -
A10: 144 | B10: 2.05 | C10: - | F10: 654 | G10: 549 | J10: 68.7 | K10: 57.2 | L10: 11.3 | M10: 13.4
A11: 143 | B11: 2.06 | C11: 1.46 | F11: 653 | G11: 548 | J11: 68.5 | K11: 57 | L11: - | M11: -
A12: 142 | B12: 2.07 | C12: - | F12: 652 | G12: 547 | J12: 68.3 | K12: 56.8 | L12: - | M12: 13.5
A13: 141 | B13: 2.08 | C13: 1.47 | F13: 651 | G13: 546 | J13: 68.1 | K13: 56.6 | L13: 11.4 | M13: -
A14: 140 | B14: - | C14: - | F14: 650 | G14: 545 | J14: 67.9 | K14: 56.4 | L14: - | M14: 13.6
A15: 139 | B15: 2.09 | C15: 1.48 | F15: 649 | G15: 544 | J15: 67.7 | K15: 56.2 | L15: - | M15: -
A16: 138 | B16: 2.1 | C16: - | F16: 648 | G16: 543 | J16: 67.5 | K16: 56 | L16: 11.5 | M16: 13.7
A17: 137 | B17: 2.11 | C17: 1.49 | F17: 647 | G17: 542 | J17: 67.3 | K17: 55.7 | L17: - | M17: -
A18: 136 | B18: 2.12 | C18: - | F18: 646 | G18: 541 | J18: 67 | K18: 55.4 | L18: - | M18: 13.8
A19: 135 | B19: - | C19: 1.5 | F19: 645 | G19: 540 | J19: 66.7 | K19: 55.1 | L19: 11.6 | M19: -
A20: 134 | B20: 2.13 | C20: - | F20: 644 | G20: 539 | J20: 66.4 | K20: 54.8 | L20: - | M20: 13.9
A21: 133 | B21: 2.14 | C21: 1.51 | F21: 643 | G21: 538 | J21: 66.1 | K21: 54.5 | L21: - | M21: -
A22: 132 | B22: 2.15 | C22: - | F22: 642 | G22: 537 | J22: 65.8 | K22: 54.2 | L22: 11.7 | M22: 14
A23: 131 | B23: 2.16 | C23: 1.52 | F23: 641 | G23: 536 | J23: 65.5 | K23: 53.9 | L23: - | M23: -
A24: 130 | B24: - | C24: - | F24: 640 | G24: 535 | J24: 65.2 | K24: 53.6 | L24: - | M24: 14.1
A25: 129 | B25: 2.17 | C25: 1.53 | F25: 639 | G25: 534 | J25: 64.9 | K25: 53.3 | L25: 11.8 | M25: -
A26: 128 | B26: 2.18 | C26: - | F26: 638 | G26: 533 | J26: 64.6 | K26: 53 | L26: - | M26: 14.2
A27: 127 | B27: 2.19 | C27: 1.54 | F27: 637 | G27: 532 | J27: 64.3 | K27: 52.7 | L27: - | M27: -
A28: 126 | B28: 2.2 | C28: - | F28: 636 | G28: 531 | J28: 64 | K28: 52.4 | L28: 11.9 | M28: 14.3
A29: 125 | B29: - | C29: 1.55 | F29: 635 | G29: 530 | J29: 63.7 | K29: 52.1 | L29: - | M29: -
A30: 124 | B30: 2.21 | C30: - | F30: 634 | G30: 529 | J30: 63.4 | K30: 51.8 | L30: - | M30: 14.4
A31: 123 | B31: 2.22 | C31: 1.56 | F31: 633 | G31: 528 | J31: 63.1 | K31: 51.5 | L31: 12 | M31: -
A32: 122 | B32: 2.23 | C32: - | F32: 632 | G32: 527 | J32: 62.8 | K32: 51.2 | L32: - | M32: 14.5
A33: 121 | B33: 2.24 | C33: 1.57 | F33: 630 | G33: 526 | J33: 62.5 | K33: 50.9 | L33: - | M33: -
A34: 120 | B34: - | C34: - | F34: 628 | G34: 525 | J34: 62.2 | K34: 50.6 | L34: 12.1 | M34: 14.6
A35: 119 | B35: 2.25 | C35: 1.58 | F35: 626 | G35: 524 | J35: 61.9 | K35: 50.3 | L35: - | M35: -
A36: 118 | B36: 2.26 | C36: - | F36: 624 | G36: 523 | J36: 61.6 | K36: 50 | L36: - | M36: -
A37: 117 | B37: 2.27 | C37: 1.59 | F37: 622 | G37: 522 | J37: 61.3 | K37: 49.7 | L37: 12.2 | M37: 14.7
A38: 116 | B38: 2.28 | C38: - | F38: 620 | G38: 521 | J38: 61 | K38: 49.4 | L38: - | M38: -
A39: 115 | B39: - | C39: 2 | F39: 618 | G39: 520 | J39: 60.7 | K39: 49.1 | L39: - | M39: -
A40: 114 | B40: 2.29 | C40: - | F40: 616 | G40: 519 | J40: 60.4 | K40: 48.8 | L40: 12.3 | M40: 14.8
A41: 113 | B41: 2.3 | C41: 2.01 | F41: 614 | G41: 518 | J41: 60.1 | K41: 48.5 | L41: - | M41: -
A42: 112 | B42: 2.31 | C42: - | F42: 612 | G42: 517 | J42: 59.8 | K42: 48.2 | L42: - | M42: -
A43: 111 | B43: 2.32 | C43: 2.02 | F43: 610 | G43: 516 | J43: 59.5 | K43: 47.9 | L43: 12.4 | M43: 14.9
A44: 110 | B44: - | C44: - | F44: 608 | G44: 515 | J44: 59.1 | K44: 47.6 | L44: - | M44: -
A45: 109 | B45: 2.33 | C45: 2.03 | F45: 606 | G45: 514 | J45: 58.7 | K45: 47.3 | L45: - | M45: -
A46: 108 | B46: 2.34 | C46: - | F46: 604 | G46: 513 | J46: 58.3 | K46: 47 | L46: 12.5 | M46: 15
A47: 107 | B47: 2.35 | C47: 2.04 | F47: 602 | G47: 512 | J47: 57.9 | K47: 46.7 | L47: - | M47: -
A48: 106 | B48: 2.36 | C48: - | F48: 600 | G48: 511 | J48: 57.5 | K48: 46.4 | L48: - | M48: -
A49: 105 | B49: - | C49: 2.05 | F49: 598 | G49: 510 | J49: 57.1 | K49: 46.1 | L49: 12.6 | M49: 15.1
A50: 104 | B50: 2.37 | C50: - | F50: 596 | G50: 509 | J50: 56.7 | K50: 45.8 | L50: - | M50: -
A51: 103 | B51: 2.38 | C51: 2.06 | F51: 594 | G51: 507 | J51: 56.3 | K51: 45.5 | L51: - | M51: -
A52: 102 | B52: 2.39 | C52: - | F52: 592 | G52: 505 | J52: 55.9 | K52: 45.2 | L52: 12.7 | M52: 15.2
A53: 101 | B53: 2.4 | C53: 2.07 | F53: 590 | G53: 503 | J53: 55.5 | K53: 44.9 | L53: - | M53: -
A54: 100 | B54: - | C54: - | F54: 588 | G54: 501 | J54: 55.1 | K54: 44.6 | L54: - | M54: -
A55: 99 | B55: 2.41 | C55: 2.08 | F55: 586 | G55: 499 | J55: 54.7 | K55: 44.3 | L55: 12.8 | M55: 15.3
A56: 98 | B56: 2.42 | C56: - | F56: 584 | G56: 497 | J56: 54.3 | K56: 44 | L56: - | M56: -
A57: 97 | B57: 2.43 | C57: 2.09 | F57: 582 | G57: 495 | J57: 53.9 | K57: 43.7 | L57: - | M57: -
A58: 96 | B58: 2.44 | C58: - | F58: 580 | G58: 493 | J58: 53.5 | K58: 43.4 | L58: 12.9 | M58: 15.4
A59: 95 | B59: - | C59: 2.1 | F59: 578 | G59: 491 | J59: 53.1 | K59: 43.1 | L59: - | M59: -
A60: 94 | B60: 2.45 | C60: - | F60: 576 | G60: 489 | J60: 52.7 | K60: 42.8 | L60: - | M60: -
A61: 93 | B61: 2.46 | C61: 2.11 | F61: 574 | G61: 487 | J61: 52.3 | K61: 42.5 | L61: 13 | M61: 15.5
A62: 92 | B62: 2.47 | C62: - | F62: 572 | G62: 485 | J62: 51.9 | K62: 42.2 | L62: - | M62: -
A63: 91 | B63: 2.48 | C63: 2.12 | F63: 570 | G63: 483 | J63: 51.5 | K63: 41.9 | L63: - | M63: -
A64: 90 | B64: - | C64: - | F64: 568 | G64: 481 | J64: 51.1 | K64: 41.6 | L64: 13.1 | M64: 15.6
A65: 89 | B65: 2.49 | C65: 2.13 | F65: 566 | G65: 479 | J65: 50.7 | K65: 41.3 | L65: - | M65: -
A66: 88 | B66: 2.5 | C66: - | F66: 564 | G66: 477 | J66: 50.3 | K66: 41 | L66: - | M66: -
A67: 87 | B67: 2.51 | C67: 2.14 | F67: 562 | G67: 475 | J67: 49.9 | K67: 40.7 | L67: 13.2 | M67: 15.7
A68: 86 | B68: 2.52 | C68: - | F68: 559 | G68: 473 | J68: 49.5 | K68: 40.4 | L68: - | M68: -
A69: 85 | B69: - | C69: 2.15 | F69: 556 | G69: 471 | J69: 49.1 | K69: 40.1 | L69: - | M69: -
A70: 84 | B70: 2.53 | C70: - | F70: 553 | G70: 469 | J70: 48.7 | K70: 39.7 | L70: 13.3 | M70: 15.8
A71: 83 | B71: 2.54 | C71: 2.16 | F71: 550 | G71: 467 | J71: 48.3 | K71: 39.3 | L71: - | M71: -
A72: 82 | B72: 2.55 | C72: - | F72: 547 | G72: 465 | J72: 47.9 | K72: 38.9 | L72: - | M72: -
A73: 81 | B73: 2.56 | C73: 2.17 | F73: 544 | G73: 463 | J73: 47.5 | K73: 38.5 | L73: 13.4 | M73: 15.9
A74: 80 | B74: - | F74: 541 | G74: 461 | J74: 47.1 | K74: 38.1 | L74: - | M74: -
A75: 79 | B75: 2.57 | C75: 2.18 | F75: 538 | G75: 459 | J75: 46.7 | K75: 37.7 | L75: - | M75: -
A76: 78 | B76: 2.58 | C76: - | F76: 535 | G76: 457 | J76: 46.3 | K76: 37.3 | L76: 13.5 | M76: 16
A77: 77 | B77: 2.59 | C77: 2.19 | F77: 532 | G77: 455 | J77: 45.9 | K77: 36.9 | L77: - | M77: -
A78: 76 | B78: 3 | C78: - | F78: 529 | G78: 453 | J78: 45.5 | K78: 36.5 | L78: - | M78: -
A79: 75 | B79: - | C79: 2.2 | F79: 526 | G79: 451 | J79: 45.1 | K79: 36.1 | L79: 13.6 | M79: 16.1
A80: 74 | B80: 3.01 | C80: - | F80: 523 | G80: 449 | J80: 44.7 | K80: 35.7 | L80: - | M80: -
A81: 73 | B81: 3.02 | C81: 2.21 | F81: 520 | G81: 447 | J81: 44.3 | K81: 35.3 | L81: - | M81: 16.2
A82: 72 | B82: 3.03 | C82: - | F82: 517 | G82: 445 | J82: 43.9 | K82: 34.9 | L82: 13.7 | M82: -
A83: 71 | B83: 3.04 | C83: 2.22 | F83: 514 | G83: 443 | J83: 43.5 | K83: 34.5 | L83: - | M83: 16.3
A84: 70 | B84: - | C84: - | F84: 511 | G84: 441 | J84: 43.1 | K84: 34.1 | L84: - | M84: -
A85: 69 | B85: 3.05 | C85: 2.23 | F85: 508 | G85: 439 | J85: 42.7 | K85: 33.7 | L85: 13.8 | M85: 16.4
A86: 68 | B86: 3.06 | C86: - | F86: 505 | G86: 437 | J86: 42.3 | K86: 33.3 | L86: - | M86: -
A87: 67 | B87: 3.07 | C87: 2.24 | F87: 502 | G87: 435 | J87: 41.9 | K87: 32.9 | L87: - | M87: 16.5
A88: 66 | B88: 3.08 | C88: - | F88: 499 | G88: 433 | J88: 41.5 | K88: 32.5 | L88: 13.9 | M88: -
A89: 65 | B89: - | C89: 2.25 | F89: 496 | G89: 431 | J89: 41.1 | K89: 32.1 | L89: - | M89: 16.6
A90: 64 | B90: 3.09 | C90: - | F90: 493 | G90: 429 | J90: 40.7 | K90: 31.7 | L90: - | M90: -
A91: 63 | B91: 3.1 | C91: 2.26 | F91: 490 | G91: 427 | J91: 40.3 | K91: 31.3 | L91: 14 | M91: 16.7
A92: 62 | B92: 3.11 | C92: - | F92: 487 | G92: 425 | J92: 39.9 | K92: 30.9 | L92: - | M92: -
A93: 61 | B93: 3.12 | C93: 2.27 | F93: 484 | G93: 423 | J93: 39.5 | K93: 30.5 | L93: - | M93: 16.8
A94: 60 | B94: - | C94: - | F94: 481 | G94: 421 | J94: 39.1 | K94: 30.1 | L94: 14.1 | M94: -
A95: 59 | B95: 3.13 | C95: 2.28 | F95: 478 | G95: 419 | J95: 38.7 | K95: 29.7 | L95: - | M95: 16.9
A96: 58 | B96: 3.14 | C96: - | F96: 475 | G96: 417 | J96: 38.3 | K96: 29.3 | L96: - | M96: -
A97: 57 | B97: 3.15 | C97: 2.29 | F97: 472 | G97: 415 | J97: 37.9 | K97: 28.9 | L97: 14.2 | M97: 17
A98: 56 | B98: 3.16 | C98: - | F98: 469 | G98: 413 | J98: 37.5 | K98: 28.5 | L98: - | M98: -
A99: 55 | B99: - | C99: 2.3 | F99: 466 | G99: 411 | J99: 37.1 | K99: 28.1 | L99: 14.3 | M99: 17.1
A100: 54 | B100: 3.17 | C100: - | F100: 463 | G100: 408 | J100: 36.7 | K100: 27.7 | L100: - | M100: -
A101: 53 | B101: 3.18 | C101: 2.31 | F101: 460 | G101: 405 | J101: 36.3 | K101: 27.3 | L101: 14.4 | M101: 17.2
A102: 52 | B102: 3.19 | C102: - | F102: 457 | G102: 402 | J102: 35.9 | K102: 26.9 | L102: - | M102: -
A103: 51 | B103: 3.2 | C103: 2.32 | F103: 453 | G103: 399 | J103: 35.5 | K103: 26.5 | L103: 14.5 | M103: 17.3
A104: 50 | B104: - | C104: - | F104: 449 | G104: 396 | J104: 35.1 | K104: 26.1 | L104: - | M104: -
A105: 49 | B105: 3.21 | C105: 2.33 | F105: 445 | G105: 393 | J105: 34.7 | K105: 25.7 | L105: 14.6 | M105: 17.4
A106: 48 | B106: 3.22 | C106: - | F106: 441 | G106: 390 | J106: 34.3 | K106: 25.3 | L106: - | M106: -
A107: 47 | B107: 3.23 | C107: 2.34 | F107: 437 | G107: 387 | J107: 33.9 | K107: 24.9 | L107: 14.7 | M107: 17.5
A108: 46 | B108: 3.24 | C108: - | F108: 433 | G108: 384 | J108: 33.5 | K108: 24.5 | L108: - | M108: -
A109: 45 | B109: - | C109: 2.35 | F109: 429 | G109: 381 | J109: 33 | K109: 24.1 | L109: 14.8 | M109: 17.6
A110: 44 | B110: 3.25 | C110: - | F110: 425 | G110: 378 | J110: 32.5 | K110: 23.7 | L110: - | M110: -
A111: 43 | B111: 3.26 | C111: 2.36 | F111: 421 | G111: 375 | J111: 32 | K111: 23.3 | L111: 14.9 | M111: 17.7
A112: 42 | B112: 3.27 | C112: - | F112: 417 | G112: 372 | J112: 31.5 | K112: 22.9 | L112: - | M112: -
A113: 41 | B113: 3.28 | C113: 2.37 | F113: 413 | G113: 369 | J113: 31 | K113: 22.5 | L113: 15 | M113: 17.8
A114: 40 | B114: - | C114: - | F114: 409 | G114: 366 | J114: 30.5 | K114: 22.1 | L114: - | M114: -
A115: 39 | B115: 3.29 | C115: 2.38 | F115: 405 | G115: 363 | J115: 30 | K115: 21.7 | L115: 15.1 | M115: 17.9
A116: 38 | B116: 3.3 | C116: - | F116: 401 | G116: 360 | J116: 29.5 | K116: 21.3 | L116: - | M116: -
A117: 37 | B117: 3.31 | C117: 2.39 | F117: 397 | G117: 357 | J117: 29 | K117: 20.9 | L117: 15.2 | M117: 18
A118: 36 | B118: 3.32 | C118: - | F118: 393 | G118: 353 | J118: 28.5 | K118: 20.5 | L118: - | M118: 18.1
A119: 35 | B119: - | C119: 2.4 | F119: 389 | G119: 349 | J119: 28 | K119: 20.1 | L119: 15.3 | M119: 18.2
A120: 34 | B120: 3.33 | C120: - | F120: 385 | G120: 345 | J120: 27.5 | K120: 19.7 | L120: - | M120: 18.3
A121: 33 | B121: 3.34 | C121: 2.41 | F121: 381 | G121: 341 | J121: 27 | K121: 19.3 | L121: 15.4 | M121: 18.4
A122: 32 | B122: 3.35 | C122: - | F122: 377 | G122: 337 | J122: 26.5 | K122: 18.9 | L122: - | M122: 18.5
A123: 31 | B123: 3.36 | C123: 2.42 | F123: 373 | G123: 333 | J123: 26 | K123: 18.5 | L123: 15.5 | M123: 18.6
A124: 30 | B124: - | C124: - | F124: 369 | G124: 329 | J124: 25.5 | K124: 18.1 | L124: - | M124: 18.7
A125: 29 | B125: 3.37 | C125: 2.43 | F125: 365 | G125: 325 | J125: 25 | K125: 17.7 | L125: 15.6 | M125: 18.8
A126: 28 | B126: 3.38 | C126: - | F126: 361 | G126: 321 | J126: 24.5 | K126: 17.3 | L126: - | M126: 18.9
A127: 27 | B127: 3.39 | C127: 2.44 | F127: 357 | G127: 317 | J127: 24 | K127: 16.9 | L127: 15.7 | M127: 19
A128: 26 | B128: 3.4 | C128: - | F128: 353 | G128: 313 | J128: 23.5 | K128: 16.5 | L128: - | M128: 19.2
A129: 25 | B129: - | C129: 2.45 | F129: 349 | G129: 309 | J129: 23 | K129: 16.1 | L129: 15.8 | M129: 19.4
A130: 24 | B130: 3.41 | C130: 2.46 | F130: 345 | G130: 305 | J130: 22.5 | K130: 15.7 | L130: - | M130: 19.6
A131: 23 | B131: 3.42 | C131: - | F131: 340 | G131: 301 | J131: 22 | K131: 15.3 | L131: 15.9 | M131: 19.8
A132: 22 | B132: 3.43 | C132: 2.47 | F132: 335 | G132: 297 | J132: 21.5 | K132: 14.9 | L132: - | M132: 20
A133: 21 | B133: 3.44 | C133: 2.48 | F133: 330 | G133: 293 | J133: 21 | K133: 14.5 | L133: 16 | M133: 20.2
A134: 20 | B134: - | C134: - | F134: 325 | G134: 289 | J134: 20.5 | K134: 14.1 | L134: 16.1 | M134: 20.4
A135: 19 | B135: 3.45 | C135: 2.49 | F135: 320 | G135: 285 | J135: 20 | K135: 13.7 | L135: 16.2 | M135: 20.6
A136: 18 | B136: 3.46 | C136: - | F136: 315 | G136: 281 | J136: 19.5 | K136: 13.3 | L136: 16.3 | M136: 20.8
A137: 17 | B137: 3.47 | C137: 2.5 | F137: 310 | G137: 277 | J137: 19 | K137: 12.9 | L137: 16.4 | M137: 21
A138: 16 | B138: 3.48 | C138: 2.51 | F138: 305 | G138: 273 | J138: 18.5 | K138: 12.5 | L138: 16.5 | M138: 21.2
A139: 15 | B139: - | C139: - | F139: 300 | G139: 269 | J139: 18 | K139: 12.1 | L139: 16.6 | M139: 21.4
A140: 14 | B140: 3.49 | C140: 2.52 | F140: 295 | G140: 265 | J140: 17.5 | K140: 11.7 | L140: 16.7 | M140: 21.6
A141: 13 | B141: 3.5 | C141: - | F141: 290 | G141: 260 | J141: 17 | K141: 11.3 | L141: 16.8 | M141: 21.8
A142: 12 | B142: 3.51 | C142: 2.53 | F142: 285 | G142: 255 | J142: 16.5 | K142: 10.9 | L142: 16.9 | M142: 22
A143: 11 | B143: 3.52 | C143: 2.54 | F143: 280 | G143: 250 | J143: 16 | K143: 10.5 | L143: 17 | M143: 22.3
A144: 10 | B144: - | C144: - | F144: 275 | G144: 245 | J144: 15.5 | K144: 10.1 | L144: 17.1 | M144: 22.6
A145: 9 | B145: 3.53 | C145: 2.55 | F145: 270 | G145: 240 | J145: 15 | K145: 9.7 | L145: 17.2 | M145: 22.9
A146: 8 | B146: 3.54 | C146: - | F146: 265 | G146: 235 | J146: 14.5 | K146: 9.3 | L146: 17.3 | M146: 23.2
A147: 7 | B147: 3.55 | C147: 2.56 | F147: 260 | G147: 230 | J147: 14 | K147: 8.9 | L147: 17.4 | M147: 23.5
A148: 6 | B148: 3.56 | C148: 2.57 | F148: 255 | G148: 225 | J148: 13.5 | K148: 8.5 | L148: 17.5 | M148: 23.8
A149: 5 | B149: - | C149: - | F149: 250 | G149: 220 | J149: 13 | K149: 8.1 | L149: 17.6 | M149: 24.1
A150: 4 | B150: 3.57 | C150: 2.58 | F150: 245 | G150: 215 | J150: 12.5 | K150: 7.7 | L150: 17.7 | M150: 24.4
A151: 3 | B151: 3.58 | C151: - | F151: 240 | G151: 210 | J151: 12 | K151: 7.3 | L151: 17.8 | M151: 24.7
A152: 2 | B152: 3.59 | C152: 2.59 | F152: 235 | G152: 205 | J152: 11.5 | K152: 6.9 | L152: 17.9 | M152: 25
A153: 1 | B153: 4 | C153: 3 | F153: 230 | G153: 200 | J153: 11 | K153: 6.5 | L153: 18 | M153: 25.3

Sheet 16
A1: 16
A2: Очки | B2: Бег 800м/600д (мин сек) | F2: Прыжок с разбега (см) | J2: Метание мяча 140 гр (м) | L2: Бег 100 м (сек) | M2: 30 м
B3: м | C3: ж | D3: м | E3: ж | F3: м | G3: ж | H3: м | I3: ж | J3: м | K3: ж | L3: м | M3: ж
A4: 150 | B4: 2.01 | C4: 1.43 | F4: 660 | G4: 555 | J4: 70 | K4: 58 | L4: 11.1 | M4: 13.1
A5: 149 | B5: - | C5: - | F5: 659 | G5: 554 | J5: 69.7 | K5: 57.9 | L5: - | M5: -
A6: 148 | B6: 2.02 | C6: - | F6: 658 | G6: 553 | J6: 69.5 | K6: 57.8 | L6: - | M6: 13.2
A7: 147 | B7: 2.03 | C7: 1.44 | F7: 657 | G7: 552 | J7: 69.3 | K7: 57.7 | L7: 11.2 | M7: -
A8: 146 | B8: 2.04 | C8: - | F8: 656 | G8: 551 | J8: 69.1 | K8: 57.6 | L8: - | M8: 13.3
A9: 145 | B9: - | C9: 1.45 | F9: 655 | G9: 550 | J9: 68.9 | K9: 57.4 | L9: - | M9: -
A10: 144 | B10: 2.05 | C10: - | F10: 654 | G10: 549 | J10: 68.7 | K10: 57.2 | L10: 11.3 | M10: 13.4
A11: 143 | B11: 2.06 | C11: 1.46 | F11: 653 | G11: 548 | J11: 68.5 | K11: 57 | L11: - | M11: -
A12: 142 | B12: 2.07 | C12: - | F12: 652 | G12: 547 | J12: 68.3 | K12: 56.8 | L12: - | M12: 13.5
A13: 141 | B13: 2.08 | C13: 1.47 | F13: 651 | G13: 546 | J13: 68.1 | K13: 56.6 | L13: 11.4 | M13: -
A14: 140 | B14: - | C14: - | F14: 650 | G14: 545 | J14: 67.9 | K14: 56.4 | L14: - | M14: 13.6
A15: 139 | B15: 2.09 | C15: 1.48 | F15: 649 | G15: 544 | J15: 67.7 | K15: 56.2 | L15: - | M15: -
A16: 138 | B16: 2.1 | C16: - | F16: 648 | G16: 543 | J16: 67.5 | K16: 56 | L16: 11.5 | M16: 13.7
A17: 137 | B17: 2.11 | C17: 1.49 | F17: 647 | G17: 542 | J17: 67.3 | K17: 55.7 | L17: - | M17: -
A18: 136 | B18: 2.12 | C18: - | F18: 646 | G18: 541 | J18: 67 | K18: 55.4 | L18: - | M18: 13.8
A19: 135 | B19: - | C19: 1.5 | F19: 645 | G19: 540 | J19: 66.7 | K19: 55.1 | L19: 11.6 | M19: -
A20: 134 | B20: 2.13 | C20: - | F20: 644 | G20: 539 | J20: 66.4 | K20: 54.8 | L20: - | M20: 13.9
A21: 133 | B21: 2.14 | C21: 1.51 | F21: 643 | G21: 538 | J21: 66.1 | K21: 54.5 | L21: - | M21: -
A22: 132 | B22: 2.15 | C22: - | F22: 642 | G22: 537 | J22: 65.8 | K22: 54.2 | L22: 11.7 | M22: 14
A23: 131 | B23: 2.16 | C23: 1.52 | F23: 641 | G23: 536 | J23: 65.5 | K23: 53.9 | L23: - | M23: -
A24: 130 | B24: - | C24: - | F24: 640 | G24: 535 | J24: 65.2 | K24: 53.6 | L24: - | M24: 14.1
A25: 129 | B25: 2.17 | C25: 1.53 | F25: 639 | G25: 534 | J25: 64.9 | K25: 53.3 | L25: 11.8 | M25: -
A26: 128 | B26: 2.18 | C26: - | F26: 638 | G26: 533 | J26: 64.6 | K26: 53 | L26: - | M26: 14.2
A27: 127 | B27: 2.19 | C27: 1.54 | F27: 637 | G27: 532 | J27: 64.3 | K27: 52.7 | L27: - | M27: -
A28: 126 | B28: 2.2 | C28: - | F28: 636 | G28: 531 | J28: 64 | K28: 52.4 | L28: 11.9 | M28: 14.3
A29: 125 | B29: - | C29: 1.55 | F29: 635 | G29: 530 | J29: 63.7 | K29: 52.1 | L29: - | M29: -
A30: 124 | B30: 2.21 | C30: - | F30: 634 | G30: 529 | J30: 63.4 | K30: 51.8 | L30: - | M30: 14.4
A31: 123 | B31: 2.22 | C31: 1.56 | F31: 633 | G31: 528 | J31: 63.1 | K31: 51.5 | L31: 12 | M31: -
A32: 122 | B32: 2.23 | C32: - | F32: 632 | G32: 527 | J32: 62.8 | K32: 51.2 | L32: - | M32: 14.5
A33: 121 | B33: 2.24 | C33: 1.57 | F33: 630 | G33: 526 | J33: 62.5 | K33: 50.9 | L33: - | M33: -
A34: 120 | B34: - | C34: - | F34: 628 | G34: 525 | J34: 62.2 | K34: 50.6 | L34: 12.1 | M34: 14.6
A35: 119 | B35: 2.25 | C35: 1.58 | F35: 626 | G35: 524 | J35: 61.9 | K35: 50.3 | L35: - | M35: -
A36: 118 | B36: 2.26 | C36: - | F36: 624 | G36: 523 | J36: 61.6 | K36: 50 | L36: - | M36: -
A37: 117 | B37: 2.27 | C37: 1.59 | F37: 622 | G37: 522 | J37: 61.3 | K37: 49.7 | L37: 12.2 | M37: 14.7
A38: 116 | B38: 2.28 | C38: - | F38: 620 | G38: 521 | J38: 61 | K38: 49.4 | L38: - | M38: -
A39: 115 | B39: - | C39: 2 | F39: 618 | G39: 520 | J39: 60.7 | K39: 49.1 | L39: - | M39: -
A40: 114 | B40: 2.29 | C40: - | F40: 616 | G40: 519 | J40: 60.4 | K40: 48.8 | L40: 12.3 | M40: 14.8
A41: 113 | B41: 2.3 | C41: 2.01 | F41: 614 | G41: 518 | J41: 60.1 | K41: 48.5 | L41: - | M41: -
A42: 112 | B42: 2.31 | C42: - | F42: 612 | G42: 517 | J42: 59.8 | K42: 48.2 | L42: - | M42: -
A43: 111 | B43: 2.32 | C43: 2.02 | F43: 610 | G43: 516 | J43: 59.5 | K43: 47.9 | L43: 12.4 | M43: 14.9
A44: 110 | B44: - | C44: - | F44: 608 | G44: 515 | J44: 59.1 | K44: 47.6 | L44: - | M44: -
A45: 109 | B45: 2.33 | C45: 2.03 | F45: 606 | G45: 514 | J45: 58.7 | K45: 47.3 | L45: - | M45: -
A46: 108 | B46: 2.34 | C46: - | F46: 604 | G46: 513 | J46: 58.3 | K46: 47 | L46: 12.5 | M46: 15
A47: 107 | B47: 2.35 | C47: 2.04 | F47: 602 | G47: 512 | J47: 57.9 | K47: 46.7 | L47: - | M47: -
A48: 106 | B48: 2.36 | C48: - | F48: 600 | G48: 511 | J48: 57.5 | K48: 46.4 | L48: - | M48: -
A49: 105 | B49: - | C49: 2.05 | F49: 598 | G49: 510 | J49: 57.1 | K49: 46.1 | L49: 12.6 | M49: 15.1
A50: 104 | B50: 2.37 | C50: - | F50: 596 | G50: 509 | J50: 56.7 | K50: 45.8 | L50: - | M50: -
A51: 103 | B51: 2.38 | C51: 2.06 | F51: 594 | G51: 507 | J51: 56.3 | K51: 45.5 | L51: - | M51: -
A52: 102 | B52: 2.39 | C52: - | F52: 592 | G52: 505 | J52: 55.9 | K52: 45.2 | L52: 12.7 | M52: 15.2
A53: 101 | B53: 2.4 | C53: 2.07 | F53: 590 | G53: 503 | J53: 55.5 | K53: 44.9 | L53: - | M53: -
A54: 100 | B54: - | C54: - | F54: 588 | G54: 501 | J54: 55.1 | K54: 44.6 | L54: - | M54: -
A55: 99 | B55: 2.41 | C55: 2.08 | F55: 586 | G55: 499 | J55: 54.7 | K55: 44.3 | L55: 12.8 | M55: 15.3
A56: 98 | B56: 2.42 | C56: - | F56: 584 | G56: 497 | J56: 54.3 | K56: 44 | L56: - | M56: -
A57: 97 | B57: 2.43 | C57: 2.09 | F57: 582 | G57: 495 | J57: 53.9 | K57: 43.7 | L57: - | M57: -
A58: 96 | B58: 2.44 | C58: - | F58: 580 | G58: 493 | J58: 53.5 | K58: 43.4 | L58: 12.9 | M58: 15.4
A59: 95 | B59: - | C59: 2.1 | F59: 578 | G59: 491 | J59: 53.1 | K59: 43.1 | L59: - | M59: -
A60: 94 | B60: 2.45 | C60: - | F60: 576 | G60: 489 | J60: 52.7 | K60: 42.8 | L60: - | M60: -
A61: 93 | B61: 2.46 | C61: 2.11 | F61: 574 | G61: 487 | J61: 52.3 | K61: 42.5 | L61: 13 | M61: 15.5
A62: 92 | B62: 2.47 | C62: - | F62: 572 | G62: 485 | J62: 51.9 | K62: 42.2 | L62: - | M62: -
A63: 91 | B63: 2.48 | C63: 2.12 | F63: 570 | G63: 483 | J63: 51.5 | K63: 41.9 | L63: - | M63: -
A64: 90 | B64: - | C64: - | F64: 568 | G64: 481 | J64: 51.1 | K64: 41.6 | L64: 13.1 | M64: 15.6
A65: 89 | B65: 2.49 | C65: 2.13 | F65: 566 | G65: 479 | J65: 50.7 | K65: 41.3 | L65: - | M65: -
A66: 88 | B66: 2.5 | C66: - | F66: 564 | G66: 477 | J66: 50.3 | K66: 41 | L66: - | M66: -
A67: 87 | B67: 2.51 | C67: 2.14 | F67: 562 | G67: 475 | J67: 49.9 | K67: 40.7 | L67: 13.2 | M67: 15.7
A68: 86 | B68: 2.52 | C68: - | F68: 559 | G68: 473 | J68: 49.5 | K68: 40.4 | L68: - | M68: -
A69: 85 | B69: - | C69: 2.15 | F69: 556 | G69: 471 | J69: 49.1 | K69: 40.1 | L69: - | M69: -
A70: 84 | B70: 2.53 | C70: - | F70: 553 | G70: 469 | J70: 48.7 | K70: 39.7 | L70: 13.3 | M70: 15.8
A71: 83 | B71: 2.54 | C71: 2.16 | F71: 550 | G71: 467 | J71: 48.3 | K71: 39.3 | L71: - | M71: -
A72: 82 | B72: 2.55 | C72: - | F72: 547 | G72: 465 | J72: 47.9 | K72: 38.9 | L72: - | M72: -
A73: 81 | B73: 2.56 | C73: 2.17 | F73: 544 | G73: 463 | J73: 47.5 | K73: 38.5 | L73: 13.4 | M73: 15.9
A74: 80 | B74: - | F74: 541 | G74: 461 | J74: 47.1 | K74: 38.1 | L74: - | M74: -
A75: 79 | B75: 2.57 | C75: 2.18 | F75: 538 | G75: 459 | J75: 46.7 | K75: 37.7 | L75: - | M75: -
A76: 78 | B76: 2.58 | C76: - | F76: 535 | G76: 457 | J76: 46.3 | K76: 37.3 | L76: 13.5 | M76: 16
A77: 77 | B77: 2.59 | C77: 2.19 | F77: 532 | G77: 455 | J77: 45.9 | K77: 36.9 | L77: - | M77: -
A78: 76 | B78: 3 | C78: - | F78: 529 | G78: 453 | J78: 45.5 | K78: 36.5 | L78: - | M78: -
A79: 75 | B79: - | C79: 2.2 | F79: 526 | G79: 451 | J79: 45.1 | K79: 36.1 | L79: 13.6 | M79: 16.1
A80: 74 | B80: 3.01 | C80: - | F80: 523 | G80: 449 | J80: 44.7 | K80: 35.7 | L80: - | M80: -
A81: 73 | B81: 3.02 | C81: 2.21 | F81: 520 | G81: 447 | J81: 44.3 | K81: 35.3 | L81: - | M81: 16.2
A82: 72 | B82: 3.03 | C82: - | F82: 517 | G82: 445 | J82: 43.9 | K82: 34.9 | L82: 13.7 | M82: -
A83: 71 | B83: 3.04 | C83: 2.22 | F83: 514 | G83: 443 | J83: 43.5 | K83: 34.5 | L83: - | M83: 16.3
A84: 70 | B84: - | C84: - | F84: 511 | G84: 441 | J84: 43.1 | K84: 34.1 | L84: - | M84: -
A85: 69 | B85: 3.05 | C85: 2.23 | F85: 508 | G85: 439 | J85: 42.7 | K85: 33.7 | L85: 13.8 | M85: 16.4
A86: 68 | B86: 3.06 | C86: - | F86: 505 | G86: 437 | J86: 42.3 | K86: 33.3 | L86: - | M86: -
A87: 67 | B87: 3.07 | C87: 2.24 | F87: 502 | G87: 435 | J87: 41.9 | K87: 32.9 | L87: - | M87: 16.5
A88: 66 | B88: 3.08 | C88: - | F88: 499 | G88: 433 | J88: 41.5 | K88: 32.5 | L88: 13.9 | M88: -
A89: 65 | B89: - | C89: 2.25 | F89: 496 | G89: 431 | J89: 41.1 | K89: 32.1 | L89: - | M89: 16.6
A90: 64 | B90: 3.09 | C90: - | F90: 493 | G90: 429 | J90: 40.7 | K90: 31.7 | L90: - | M90: -
A91: 63 | B91: 3.1 | C91: 2.26 | F91: 490 | G91: 427 | J91: 40.3 | K91: 31.3 | L91: 14 | M91: 16.7
A92: 62 | B92: 3.11 | C92: - | F92: 487 | G92: 425 | J92: 39.9 | K92: 30.9 | L92: - | M92: -
A93: 61 | B93: 3.12 | C93: 2.27 | F93: 484 | G93: 423 | J93: 39.5 | K93: 30.5 | L93: - | M93: 16.8
A94: 60 | B94: - | C94: - | F94: 481 | G94: 421 | J94: 39.1 | K94: 30.1 | L94: 14.1 | M94: -
A95: 59 | B95: 3.13 | C95: 2.28 | F95: 478 | G95: 419 | J95: 38.7 | K95: 29.7 | L95: - | M95: 16.9
A96: 58 | B96: 3.14 | C96: - | F96: 475 | G96: 417 | J96: 38.3 | K96: 29.3 | L96: - | M96: -
A97: 57 | B97: 3.15 | C97: 2.29 | F97: 472 | G97: 415 | J97: 37.9 | K97: 28.9 | L97: 14.2 | M97: 17
A98: 56 | B98: 3.16 | C98: - | F98: 469 | G98: 413 | J98: 37.5 | K98: 28.5 | L98: - | M98: -
A99: 55 | B99: - | C99: 2.3 | F99: 466 | G99: 411 | J99: 37.1 | K99: 28.1 | L99: 14.3 | M99: 17.1
A100: 54 | B100: 3.17 | C100: - | F100: 463 | G100: 408 | J100: 36.7 | K100: 27.7 | L100: - | M100: -
A101: 53 | B101: 3.18 | C101: 2.31 | F101: 460 | G101: 405 | J101: 36.3 | K101: 27.3 | L101: 14.4 | M101: 17.2
A102: 52 | B102: 3.19 | C102: - | F102: 457 | G102: 402 | J102: 35.9 | K102: 26.9 | L102: - | M102: -
A103: 51 | B103: 3.2 | C103: 2.32 | F103: 453 | G103: 399 | J103: 35.5 | K103: 26.5 | L103: 14.5 | M103: 17.3
A104: 50 | B104: - | C104: - | F104: 449 | G104: 396 | J104: 35.1 | K104: 26.1 | L104: - | M104: -
A105: 49 | B105: 3.21 | C105: 2.33 | F105: 445 | G105: 393 | J105: 34.7 | K105: 25.7 | L105: 14.6 | M105: 17.4
A106: 48 | B106: 3.22 | C106: - | F106: 441 | G106: 390 | J106: 34.3 | K106: 25.3 | L106: - | M106: -
A107: 47 | B107: 3.23 | C107: 2.34 | F107: 437 | G107: 387 | J107: 33.9 | K107: 24.9 | L107: 14.7 | M107: 17.5
A108: 46 | B108: 3.24 | C108: - | F108: 433 | G108: 384 | J108: 33.5 | K108: 24.5 | L108: - | M108: -
A109: 45 | B109: - | C109: 2.35 | F109: 429 | G109: 381 | J109: 33 | K109: 24.1 | L109: 14.8 | M109: 17.6
A110: 44 | B110: 3.25 | C110: - | F110: 425 | G110: 378 | J110: 32.5 | K110: 23.7 | L110: - | M110: -
A111: 43 | B111: 3.26 | C111: 2.36 | F111: 421 | G111: 375 | J111: 32 | K111: 23.3 | L111: 14.9 | M111: 17.7
A112: 42 | B112: 3.27 | C112: - | F112: 417 | G112: 372 | J112: 31.5 | K112: 22.9 | L112: - | M112: -
A113: 41 | B113: 3.28 | C113: 2.37 | F113: 413 | G113: 369 | J113: 31 | K113: 22.5 | L113: 15 | M113: 17.8
A114: 40 | B114: - | C114: - | F114: 409 | G114: 366 | J114: 30.5 | K114: 22.1 | L114: - | M114: -
A115: 39 | B115: 3.29 | C115: 2.38 | F115: 405 | G115: 363 | J115: 30 | K115: 21.7 | L115: 15.1 | M115: 17.9
A116: 38 | B116: 3.3 | C116: - | F116: 401 | G116: 360 | J116: 29.5 | K116: 21.3 | L116: - | M116: -
A117: 37 | B117: 3.31 | C117: 2.39 | F117: 397 | G117: 357 | J117: 29 | K117: 20.9 | L117: 15.2 | M117: 18
A118: 36 | B118: 3.32 | C118: - | F118: 393 | G118: 353 | J118: 28.5 | K118: 20.5 | L118: - | M118: 18.1
A119: 35 | B119: - | C119: 2.4 | F119: 389 | G119: 349 | J119: 28 | K119: 20.1 | L119: 15.3 | M119: 18.2
A120: 34 | B120: 3.33 | C120: - | F120: 385 | G120: 345 | J120: 27.5 | K120: 19.7 | L120: - | M120: 18.3
A121: 33 | B121: 3.34 | C121: 2.41 | F121: 381 | G121: 341 | J121: 27 | K121: 19.3 | L121: 15.4 | M121: 18.4
A122: 32 | B122: 3.35 | C122: - | F122: 377 | G122: 337 | J122: 26.5 | K122: 18.9 | L122: - | M122: 18.5
A123: 31 | B123: 3.36 | C123: 2.42 | F123: 373 | G123: 333 | J123: 26 | K123: 18.5 | L123: 15.5 | M123: 18.6
A124: 30 | B124: - | C124: - | F124: 369 | G124: 329 | J124: 25.5 | K124: 18.1 | L124: - | M124: 18.7
A125: 29 | B125: 3.37 | C125: 2.43 | F125: 365 | G125: 325 | J125: 25 | K125: 17.7 | L125: 15.6 | M125: 18.8
A126: 28 | B126: 3.38 | C126: - | F126: 361 | G126: 321 | J126: 24.5 | K126: 17.3 | L126: - | M126: 18.9
A127: 27 | B127: 3.39 | C127: 2.44 | F127: 357 | G127: 317 | J127: 24 | K127: 16.9 | L127: 15.7 | M127: 19
A128: 26 | B128: 3.4 | C128: - | F128: 353 | G128: 313 | J128: 23.5 | K128: 16.5 | L128: - | M128: 19.2
A129: 25 | B129: - | C129: 2.45 | F129: 349 | G129: 309 | J129: 23 | K129: 16.1 | L129: 15.8 | M129: 19.4
A130: 24 | B130: 3.41 | C130: 2.46 | F130: 345 | G130: 305 | J130: 22.5 | K130: 15.7 | L130: - | M130: 19.6
A131: 23 | B131: 3.42 | C131: - | F131: 340 | G131: 301 | J131: 22 | K131: 15.3 | L131: 15.9 | M131: 19.8
A132: 22 | B132: 3.43 | C132: 2.47 | F132: 335 | G132: 297 | J132: 21.5 | K132: 14.9 | L132: - | M132: 20
A133: 21 | B133: 3.44 | C133: 2.48 | F133: 330 | G133: 293 | J133: 21 | K133: 14.5 | L133: 16 | M133: 20.2
A134: 20 | B134: - | C134: - | F134: 325 | G134: 289 | J134: 20.5 | K134: 14.1 | L134: 16.1 | M134: 20.4
A135: 19 | B135: 3.45 | C135: 2.49 | F135: 320 | G135: 285 | J135: 20 | K135: 13.7 | L135: 16.2 | M135: 20.6
A136: 18 | B136: 3.46 | C136: - | F136: 315 | G136: 281 | J136: 19.5 | K136: 13.3 | L136: 16.3 | M136: 20.8
A137: 17 | B137: 3.47 | C137: 2.5 | F137: 310 | G137: 277 | J137: 19 | K137: 12.9 | L137: 16.4 | M137: 21
A138: 16 | B138: 3.48 | C138: 2.51 | F138: 305 | G138: 273 | J138: 18.5 | K138: 12.5 | L138: 16.5 | M138: 21.2
A139: 15 | B139: - | C139: - | F139: 300 | G139: 269 | J139: 18 | K139: 12.1 | L139: 16.6 | M139: 21.4
A140: 14 | B140: 3.49 | C140: 2.52 | F140: 295 | G140: 265 | J140: 17.5 | K140: 11.7 | L140: 16.7 | M140: 21.6
A141: 13 | B141: 3.5 | C141: - | F141: 290 | G141: 260 | J141: 17 | K141: 11.3 | L141: 16.8 | M141: 21.8
A142: 12 | B142: 3.51 | C142: 2.53 | F142: 285 | G142: 255 | J142: 16.5 | K142: 10.9 | L142: 16.9 | M142: 22
A143: 11 | B143: 3.52 | C143: 2.54 | F143: 280 | G143: 250 | J143: 16 | K143: 10.5 | L143: 17 | M143: 22.3
A144: 10 | B144: - | C144: - | F144: 275 | G144: 245 | J144: 15.5 | K144: 10.1 | L144: 17.1 | M144: 22.6
A145: 9 | B145: 3.53 | C145: 2.55 | F145: 270 | G145: 240 | J145: 15 | K145: 9.7 | L145: 17.2 | M145: 22.9
A146: 8 | B146: 3.54 | C146: - | F146: 265 | G146: 235 | J146: 14.5 | K146: 9.3 | L146: 17.3 | M146: 23.2
A147: 7 | B147: 3.55 | C147: 2.56 | F147: 260 | G147: 230 | J147: 14 | K147: 8.9 | L147: 17.4 | M147: 23.5
A148: 6 | B148: 3.56 | C148: 2.57 | F148: 255 | G148: 225 | J148: 13.5 | K148: 8.5 | L148: 17.5 | M148: 23.8
A149: 5 | B149: - | C149: - | F149: 250 | G149: 220 | J149: 13 | K149: 8.1 | L149: 17.6 | M149: 24.1
A150: 4 | B150: 3.57 | C150: 2.58 | F150: 245 | G150: 215 | J150: 12.5 | K150: 7.7 | L150: 17.7 | M150: 24.4
A151: 3 | B151: 3.58 | C151: - | F151: 240 | G151: 210 | J151: 12 | K151: 7.3 | L151: 17.8 | M151: 24.7
A152: 2 | B152: 3.59 | C152: 2.59 | F152: 235 | G152: 205 | J152: 11.5 | K152: 6.9 | L152: 17.9 | M152: 25
A153: 1 | B153: 4 | C153: 3 | F153: 230 | G153: 200 | J153: 11 | K153: 6.5 | L153: 18 | M153: 25.3

Sheet 17
A1: 17
A2: Очки | B2: Бег 800м/600д (мин сек) | F2: Прыжок с разбега (см) | J2: Метание мяча 140 гр (м) | L2: Бег 100 м (сек) | M2: 30 м
B3: м | C3: ж | D3: м | E3: ж | F3: м | G3: ж | H3: м | I3: ж | J3: м | K3: ж | L3: м | M3: ж
A4: 150 | B4: 2.01 | C4: 1.43 | F4: 660 | G4: 555 | J4: 70 | K4: 58 | L4: 11.1 | M4: 13.1
A5: 149 | B5: - | C5: - | F5: 659 | G5: 554 | J5: 69.7 | K5: 57.9 | L5: - | M5: -
A6: 148 | B6: 2.02 | C6: - | F6: 658 | G6: 553 | J6: 69.5 | K6: 57.8 | L6: - | M6: 13.2
A7: 147 | B7: 2.03 | C7: 1.44 | F7: 657 | G7: 552 | J7: 69.3 | K7: 57.7 | L7: 11.2 | M7: -
A8: 146 | B8: 2.04 | C8: - | F8: 656 | G8: 551 | J8: 69.1 | K8: 57.6 | L8: - | M8: 13.3
A9: 145 | B9: - | C9: 1.45 | F9: 655 | G9: 550 | J9: 68.9 | K9: 57.4 | L9: - | M9: -
A10: 144 | B10: 2.05 | C10: - | F10: 654 | G10: 549 | J10: 68.7 | K10: 57.2 | L10: 11.3 | M10: 13.4
A11: 143 | B11: 2.06 | C11: 1.46 | F11: 653 | G11: 548 | J11: 68.5 | K11: 57 | L11: - | M11: -
A12: 142 | B12: 2.07 | C12: - | F12: 652 | G12: 547 | J12: 68.3 | K12: 56.8 | L12: - | M12: 13.5
A13: 141 | B13: 2.08 | C13: 1.47 | F13: 651 | G13: 546 | J13: 68.1 | K13: 56.6 | L13: 11.4 | M13: -
A14: 140 | B14: - | C14: - | F14: 650 | G14: 545 | J14: 67.9 | K14: 56.4 | L14: - | M14: 13.6
A15: 139 | B15: 2.09 | C15: 1.48 | F15: 649 | G15: 544 | J15: 67.7 | K15: 56.2 | L15: - | M15: -
A16: 138 | B16: 2.1 | C16: - | F16: 648 | G16: 543 | J16: 67.5 | K16: 56 | L16: 11.5 | M16: 13.7
A17: 137 | B17: 2.11 | C17: 1.49 | F17: 647 | G17: 542 | J17: 67.3 | K17: 55.7 | L17: - | M17: -
A18: 136 | B18: 2.12 | C18: - | F18: 646 | G18: 541 | J18: 67 | K18: 55.4 | L18: - | M18: 13.8
A19: 135 | B19: - | C19: 1.5 | F19: 645 | G19: 540 | J19: 66.7 | K19: 55.1 | L19: 11.6 | M19: -
A20: 134 | B20: 2.13 | C20: - | F20: 644 | G20: 539 | J20: 66.4 | K20: 54.8 | L20: - | M20: 13.9
A21: 133 | B21: 2.14 | C21: 1.51 | F21: 643 | G21: 538 | J21: 66.1 | K21: 54.5 | L21: - | M21: -
A22: 132 | B22: 2.15 | C22: - | F22: 642 | G22: 537 | J22: 65.8 | K22: 54.2 | L22: 11.7 | M22: 14
A23: 131 | B23: 2.16 | C23: 1.52 | F23: 641 | G23: 536 | J23: 65.5 | K23: 53.9 | L23: - | M23: -
A24: 130 | B24: - | C24: - | F24: 640 | G24: 535 | J24: 65.2 | K24: 53.6 | L24: - | M24: 14.1
A25: 129 | B25: 2.17 | C25: 1.53 | F25: 639 | G25: 534 | J25: 64.9 | K25: 53.3 | L25: 11.8 | M25: -
A26: 128 | B26: 2.18 | C26: - | F26: 638 | G26: 533 | J26: 64.6 | K26: 53 | L26: - | M26: 14.2
A27: 127 | B27: 2.19 | C27: 1.54 | F27: 637 | G27: 532 | J27: 64.3 | K27: 52.7 | L27: - | M27: -
A28: 126 | B28: 2.2 | C28: - | F28: 636 | G28: 531 | J28: 64 | K28: 52.4 | L28: 11.9 | M28: 14.3
A29: 125 | B29: - | C29: 1.55 | F29: 635 | G29: 530 | J29: 63.7 | K29: 52.1 | L29: - | M29: -
A30: 124 | B30: 2.21 | C30: - | F30: 634 | G30: 529 | J30: 63.4 | K30: 51.8 | L30: - | M30: 14.4
A31: 123 | B31: 2.22 | C31: 1.56 | F31: 633 | G31: 528 | J31: 63.1 | K31: 51.5 | L31: 12 | M31: -
A32: 122 | B32: 2.23 | C32: - | F32: 632 | G32: 527 | J32: 62.8 | K32: 51.2 | L32: - | M32: 14.5
A33: 121 | B33: 2.24 | C33: 1.57 | F33: 630 | G33: 526 | J33: 62.5 | K33: 50.9 | L33: - | M33: -
A34: 120 | B34: - | C34: - | F34: 628 | G34: 525 | J34: 62.2 | K34: 50.6 | L34: 12.1 | M34: 14.6
A35: 119 | B35: 2.25 | C35: 1.58 | F35: 626 | G35: 524 | J35: 61.9 | K35: 50.3 | L35: - | M35: -
A36: 118 | B36: 2.26 | C36: - | F36: 624 | G36: 523 | J36: 61.6 | K36: 50 | L36: - | M36: -
A37: 117 | B37: 2.27 | C37: 1.59 | F37: 622 | G37: 522 | J37: 61.3 | K37: 49.7 | L37: 12.2 | M37: 14.7
A38: 116 | B38: 2.28 | C38: - | F38: 620 | G38: 521 | J38: 61 | K38: 49.4 | L38: - | M38: -
A39: 115 | B39: - | C39: 2 | F39: 618 | G39: 520 | J39: 60.7 | K39: 49.1 | L39: - | M39: -
A40: 114 | B40: 2.29 | C40: - | F40: 616 | G40: 519 | J40: 60.4 | K40: 48.8 | L40: 12.3 | M40: 14.8
A41: 113 | B41: 2.3 | C41: 2.01 | F41: 614 | G41: 518 | J41: 60.1 | K41: 48.5 | L41: - | M41: -
A42: 112 | B42: 2.31 | C42: - | F42: 612 | G42: 517 | J42: 59.8 | K42: 48.2 | L42: - | M42: -
A43: 111 | B43: 2.32 | C43: 2.02 | F43: 610 | G43: 516 | J43: 59.5 | K43: 47.9 | L43: 12.4 | M43: 14.9
A44: 110 | B44: - | C44: - | F44: 608 | G44: 515 | J44: 59.1 | K44: 47.6 | L44: - | M44: -
A45: 109 | B45: 2.33 | C45: 2.03 | F45: 606 | G45: 514 | J45: 58.7 | K45: 47.3 | L45: - | M45: -
A46: 108 | B46: 2.34 | C46: - | F46: 604 | G46: 513 | J46: 58.3 | K46: 47 | L46: 12.5 | M46: 15
A47: 107 | B47: 2.35 | C47: 2.04 | F47: 602 | G47: 512 | J47: 57.9 | K47: 46.7 | L47: - | M47: -
A48: 106 | B48: 2.36 | C48: - | F48: 600 | G48: 511 | J48: 57.5 | K48: 46.4 | L48: - | M48: -
A49: 105 | B49: - | C49: 2.05 | F49: 598 | G49: 510 | J49: 57.1 | K49: 46.1 | L49: 12.6 | M49: 15.1
A50: 104 | B50: 2.37 | C50: - | F50: 596 | G50: 509 | J50: 56.7 | K50: 45.8 | L50: - | M50: -
A51: 103 | B51: 2.38 | C51: 2.06 | F51: 594 | G51: 507 | J51: 56.3 | K51: 45.5 | L51: - | M51: -
A52: 102 | B52: 2.39 | C52: - | F52: 592 | G52: 505 | J52: 55.9 | K52: 45.2 | L52: 12.7 | M52: 15.2
A53: 101 | B53: 2.4 | C53: 2.07 | F53: 590 | G53: 503 | J53: 55.5 | K53: 44.9 | L53: - | M53: -
A54: 100 | B54: - | C54: - | F54: 588 | G54: 501 | J54: 55.1 | K54: 44.6 | L54: - | M54: -
A55: 99 | B55: 2.41 | C55: 2.08 | F55: 586 | G55: 499 | J55: 54.7 | K55: 44.3 | L55: 12.8 | M55: 15.3
A56: 98 | B56: 2.42 | C56: - | F56: 584 | G56: 497 | J56: 54.3 | K56: 44 | L56: - | M56: -
A57: 97 | B57: 2.43 | C57: 2.09 | F57: 582 | G57: 495 | J57: 53.9 | K57: 43.7 | L57: - | M57: -
A58: 96 | B58: 2.44 | C58: - | F58: 580 | G58: 493 | J58: 53.5 | K58: 43.4 | L58: 12.9 | M58: 15.4
A59: 95 | B59: - | C59: 2.1 | F59: 578 | G59: 491 | J59: 53.1 | K59: 43.1 | L59: - | M59: -
A60: 94 | B60: 2.45 | C60: - | F60: 576 | G60: 489 | J60: 52.7 | K60: 42.8 | L60: - | M60: -
A61: 93 | B61: 2.46 | C61: 2.11 | F61: 574 | G61: 487 | J61: 52.3 | K61: 42.5 | L61: 13 | M61: 15.5
A62: 92 | B62: 2.47 | C62: - | F62: 572 | G62: 485 | J62: 51.9 | K62: 42.2 | L62: - | M62: -
A63: 91 | B63: 2.48 | C63: 2.12 | F63: 570 | G63: 483 | J63: 51.5 | K63: 41.9 | L63: - | M63: -
A64: 90 | B64: - | C64: - | F64: 568 | G64: 481 | J64: 51.1 | K64: 41.6 | L64: 13.1 | M64: 15.6
A65: 89 | B65: 2.49 | C65: 2.13 | F65: 566 | G65: 479 | J65: 50.7 | K65: 41.3 | L65: - | M65: -
A66: 88 | B66: 2.5 | C66: - | F66: 564 | G66: 477 | J66: 50.3 | K66: 41 | L66: - | M66: -
A67: 87 | B67: 2.51 | C67: 2.14 | F67: 562 | G67: 475 | J67: 49.9 | K67: 40.7 | L67: 13.2 | M67: 15.7
A68: 86 | B68: 2.52 | C68: - | F68: 559 | G68: 473 | J68: 49.5 | K68: 40.4 | L68: - | M68: -
A69: 85 | B69: - | C69: 2.15 | F69: 556 | G69: 471 | J69: 49.1 | K69: 40.1 | L69: - | M69: -
A70: 84 | B70: 2.53 | C70: - | F70: 553 | G70: 469 | J70: 48.7 | K70: 39.7 | L70: 13.3 | M70: 15.8
A71: 83 | B71: 2.54 | C71: 2.16 | F71: 550 | G71: 467 | J71: 48.3 | K71: 39.3 | L71: - | M71: -
A72: 82 | B72: 2.55 | C72: - | F72: 547 | G72: 465 | J72: 47.9 | K72: 38.9 | L72: - | M72: -
A73: 81 | B73: 2.56 | C73: 2.17 | F73: 544 | G73: 463 | J73: 47.5 | K73: 38.5 | L73: 13.4 | M73: 15.9
A74: 80 | B74: - | F74: 541 | G74: 461 | J74: 47.1 | K74: 38.1 | L74: - | M74: -
A75: 79 | B75: 2.57 | C75: 2.18 | F75: 538 | G75: 459 | J75: 46.7 | K75: 37.7 | L75: - | M75: -
A76: 78 | B76: 2.58 | C76: - | F76: 535 | G76: 457 | J76: 46.3 | K76: 37.3 | L76: 13.5 | M76: 16
A77: 77 | B77: 2.59 | C77: 2.19 | F77: 532 | G77: 455 | J77: 45.9 | K77: 36.9 | L77: - | M77: -
A78: 76 | B78: 3 | C78: - | F78: 529 | G78: 453 | J78: 45.5 | K78: 36.5 | L78: - | M78: -
A79: 75 | B79: - | C79: 2.2 | F79: 526 | G79: 451 | J79: 45.1 | K79: 36.1 | L79: 13.6 | M79: 16.1
A80: 74 | B80: 3.01 | C80: - | F80: 523 | G80: 449 | J80: 44.7 | K80: 35.7 | L80: - | M80: -
A81: 73 | B81: 3.02 | C81: 2.21 | F81: 520 | G81: 447 | J81: 44.3 | K81: 35.3 | L81: - | M81: 16.2
A82: 72 | B82: 3.03 | C82: - | F82: 517 | G82: 445 | J82: 43.9 | K82: 34.9 | L82: 13.7 | M82: -
A83: 71 | B83: 3.04 | C83: 2.22 | F83: 514 | G83: 443 | J83: 43.5 | K83: 34.5 | L83: - | M83: 16.3
A84: 70 | B84: - | C84: - | F84: 511 | G84: 441 | J84: 43.1 | K84: 34.1 | L84: - | M84: -
A85: 69 | B85: 3.05 | C85: 2.23 | F85: 508 | G85: 439 | J85: 42.7 | K85: 33.7 | L85: 13.8 | M85: 16.4
A86: 68 | B86: 3.06 | C86: - | F86: 505 | G86: 437 | J86: 42.3 | K86: 33.3 | L86: - | M86: -
A87: 67 | B87: 3.07 | C87: 2.24 | F87: 502 | G87: 435 | J87: 41.9 | K87: 32.9 | L87: - | M87: 16.5
A88: 66 | B88: 3.08 | C88: - | F88: 499 | G88: 433 | J88: 41.5 | K88: 32.5 | L88: 13.9 | M88: -
A89: 65 | B89: - | C89: 2.25 | F89: 496 | G89: 431 | J89: 41.1 | K89: 32.1 | L89: - | M89: 16.6
A90: 64 | B90: 3.09 | C90: - | F90: 493 | G90: 429 | J90: 40.7 | K90: 31.7 | L90: - | M90: -
A91: 63 | B91: 3.1 | C91: 2.26 | F91: 490 | G91: 427 | J91: 40.3 | K91: 31.3 | L91: 14 | M91: 16.7
A92: 62 | B92: 3.11 | C92: - | F92: 487 | G92: 425 | J92: 39.9 | K92: 30.9 | L92: - | M92: -
A93: 61 | B93: 3.12 | C93: 2.27 | F93: 484 | G93: 423 | J93: 39.5 | K93: 30.5 | L93: - | M93: 16.8
A94: 60 | B94: - | C94: - | F94: 481 | G94: 421 | J94: 39.1 | K94: 30.1 | L94: 14.1 | M94: -
A95: 59 | B95: 3.13 | C95: 2.28 | F95: 478 | G95: 419 | J95: 38.7 | K95: 29.7 | L95: - | M95: 16.9
A96: 58 | B96: 3.14 | C96: - | F96: 475 | G96: 417 | J96: 38.3 | K96: 29.3 | L96: - | M96: -
A97: 57 | B97: 3.15 | C97: 2.29 | F97: 472 | G97: 415 | J97: 37.9 | K97: 28.9 | L97: 14.2 | M97: 17
A98: 56 | B98: 3.16 | C98: - | F98: 469 | G98: 413 | J98: 37.5 | K98: 28.5 | L98: - | M98: -
A99: 55 | B99: - | C99: 2.3 | F99: 466 | G99: 411 | J99: 37.1 | K99: 28.1 | L99: 14.3 | M99: 17.1
A100: 54 | B100: 3.17 | C100: - | F100: 463 | G100: 408 | J100: 36.7 | K100: 27.7 | L100: - | M100: -
A101: 53 | B101: 3.18 | C101: 2.31 | F101: 460 | G101: 405 | J101: 36.3 | K101: 27.3 | L101: 14.4 | M101: 17.2
A102: 52 | B102: 3.19 | C102: - | F102: 457 | G102: 402 | J102: 35.9 | K102: 26.9 | L102: - | M102: -
A103: 51 | B103: 3.2 | C103: 2.32 | F103: 453 | G103: 399 | J103: 35.5 | K103: 26.5 | L103: 14.5 | M103: 17.3
A104: 50 | B104: - | C104: - | F104: 449 | G104: 396 | J104: 35.1 | K104: 26.1 | L104: - | M104: -
A105: 49 | B105: 3.21 | C105: 2.33 | F105: 445 | G105: 393 | J105: 34.7 | K105: 25.7 | L105: 14.6 | M105: 17.4
A106: 48 | B106: 3.22 | C106: - | F106: 441 | G106: 390 | J106: 34.3 | K106: 25.3 | L106: - | M106: -
A107: 47 | B107: 3.23 | C107: 2.34 | F107: 437 | G107: 387 | J107: 33.9 | K107: 24.9 | L107: 14.7 | M107: 17.5
A108: 46 | B108: 3.24 | C108: - | F108: 433 | G108: 384 | J108: 33.5 | K108: 24.5 | L108: - | M108: -
A109: 45 | B109: - | C109: 2.35 | F109: 429 | G109: 381 | J109: 33 | K109: 24.1 | L109: 14.8 | M109: 17.6
A110: 44 | B110: 3.25 | C110: - | F110: 425 | G110: 378 | J110: 32.5 | K110: 23.7 | L110: - | M110: -
A111: 43 | B111: 3.26 | C111: 2.36 | F111: 421 | G111: 375 | J111: 32 | K111: 23.3 | L111: 14.9 | M111: 17.7
A112: 42 | B112: 3.27 | C112: - | F112: 417 | G112: 372 | J112: 31.5 | K112: 22.9 | L112: - | M112: -
A113: 41 | B113: 3.28 | C113: 2.37 | F113: 413 | G113: 369 | J113: 31 | K113: 22.5 | L113: 15 | M113: 17.8
A114: 40 | B114: - | C114: - | F114: 409 | G114: 366 | J114: 30.5 | K114: 22.1 | L114: - | M114: -
A115: 39 | B115: 3.29 | C115: 2.38 | F115: 405 | G115: 363 | J115: 30 | K115: 21.7 | L115: 15.1 | M115: 17.9
A116: 38 | B116: 3.3 | C116: - | F116: 401 | G116: 360 | J116: 29.5 | K116: 21.3 | L116: - | M116: -
A117: 37 | B117: 3.31 | C117: 2.39 | F117: 397 | G117: 357 | J117: 29 | K117: 20.9 | L117: 15.2 | M117: 18
A118: 36 | B118: 3.32 | C118: - | F118: 393 | G118: 353 | J118: 28.5 | K118: 20.5 | L118: - | M118: 18.1
A119: 35 | B119: - | C119: 2.4 | F119: 389 | G119: 349 | J119: 28 | K119: 20.1 | L119: 15.3 | M119: 18.2
A120: 34 | B120: 3.33 | C120: - | F120: 385 | G120: 345 | J120: 27.5 | K120: 19.7 | L120: - | M120: 18.3
A121: 33 | B121: 3.34 | C121: 2.41 | F121: 381 | G121: 341 | J121: 27 | K121: 19.3 | L121: 15.4 | M121: 18.4
A122: 32 | B122: 3.35 | C122: - | F122: 377 | G122: 337 | J122: 26.5 | K122: 18.9 | L122: - | M122: 18.5
A123: 31 | B123: 3.36 | C123: 2.42 | F123: 373 | G123: 333 | J123: 26 | K123: 18.5 | L123: 15.5 | M123: 18.6
A124: 30 | B124: - | C124: - | F124: 369 | G124: 329 | J124: 25.5 | K124: 18.1 | L124: - | M124: 18.7
A125: 29 | B125: 3.37 | C125: 2.43 | F125: 365 | G125: 325 | J125: 25 | K125: 17.7 | L125: 15.6 | M125: 18.8
A126: 28 | B126: 3.38 | C126: - | F126: 361 | G126: 321 | J126: 24.5 | K126: 17.3 | L126: - | M126: 18.9
A127: 27 | B127: 3.39 | C127: 2.44 | F127: 357 | G127: 317 | J127: 24 | K127: 16.9 | L127: 15.7 | M127: 19
A128: 26 | B128: 3.4 | C128: - | F128: 353 | G128: 313 | J128: 23.5 | K128: 16.5 | L128: - | M128: 19.2
A129: 25 | B129: - | C129: 2.45 | F129: 349 | G129: 309 | J129: 23 | K129: 16.1 | L129: 15.8 | M129: 19.4
A130: 24 | B130: 3.41 | C130: 2.46 | F130: 345 | G130: 305 | J130: 22.5 | K130: 15.7 | L130: - | M130: 19.6
A131: 23 | B131: 3.42 | C131: - | F131: 340 | G131: 301 | J131: 22 | K131: 15.3 | L131: 15.9 | M131: 19.8
A132: 22 | B132: 3.43 | C132: 2.47 | F132: 335 | G132: 297 | J132: 21.5 | K132: 14.9 | L132: - | M132: 20
A133: 21 | B133: 3.44 | C133: 2.48 | F133: 330 | G133: 293 | J133: 21 | K133: 14.5 | L133: 16 | M133: 20.2
A134: 20 | B134: - | C134: - | F134: 325 | G134: 289 | J134: 20.5 | K134: 14.1 | L134: 16.1 | M134: 20.4
A135: 19 | B135: 3.45 | C135: 2.49 | F135: 320 | G135: 285 | J135: 20 | K135: 13.7 | L135: 16.2 | M135: 20.6
A136: 18 | B136: 3.46 | C136: - | F136: 315 | G136: 281 | J136: 19.5 | K136: 13.3 | L136: 16.3 | M136: 20.8
A137: 17 | B137: 3.47 | C137: 2.5 | F137: 310 | G137: 277 | J137: 19 | K137: 12.9 | L137: 16.4 | M137: 21
A138: 16 | B138: 3.48 | C138: 2.51 | F138: 305 | G138: 273 | J138: 18.5 | K138: 12.5 | L138: 16.5 | M138: 21.2
A139: 15 | B139: - | C139: - | F139: 300 | G139: 269 | J139: 18 | K139: 12.1 | L139: 16.6 | M139: 21.4
A140: 14 | B140: 3.49 | C140: 2.52 | F140: 295 | G140: 265 | J140: 17.5 | K140: 11.7 | L140: 16.7 | M140: 21.6
A141: 13 | B141: 3.5 | C141: - | F141: 290 | G141: 260 | J141: 17 | K141: 11.3 | L141: 16.8 | M141: 21.8
A142: 12 | B142: 3.51 | C142: 2.53 | F142: 285 | G142: 255 | J142: 16.5 | K142: 10.9 | L142: 16.9 | M142: 22
A143: 11 | B143: 3.52 | C143: 2.54 | F143: 280 | G143: 250 | J143: 16 | K143: 10.5 | L143: 17 | M143: 22.3
A144: 10 | B144: - | C144: - | F144: 275 | G144: 245 | J144: 15.5 | K144: 10.1 | L144: 17.1 | M144: 22.6
A145: 9 | B145: 3.53 | C145: 2.55 | F145: 270 | G145: 240 | J145: 15 | K145: 9.7 | L145: 17.2 | M145: 22.9
A146: 8 | B146: 3.54 | C146: - | F146: 265 | G146: 235 | J146: 14.5 | K146: 9.3 | L146: 17.3 | M146: 23.2
A147: 7 | B147: 3.55 | C147: 2.56 | F147: 260 | G147: 230 | J147: 14 | K147: 8.9 | L147: 17.4 | M147: 23.5
A148: 6 | B148: 3.56 | C148: 2.57 | F148: 255 | G148: 225 | J148: 13.5 | K148: 8.5 | L148: 17.5 | M148: 23.8
A149: 5 | B149: - | C149: - | F149: 250 | G149: 220 | J149: 13 | K149: 8.1 | L149: 17.6 | M149: 24.1
A150: 4 | B150: 3.57 | C150: 2.58 | F150: 245 | G150: 215 | J150: 12.5 | K150: 7.7 | L150: 17.7 | M150: 24.4
A151: 3 | B151: 3.58 | C151: - | F151: 240 | G151: 210 | J151: 12 | K151: 7.3 | L151: 17.8 | M151: 24.7
A152: 2 | B152: 3.59 | C152: 2.59 | F152: 235 | G152: 205 | J152: 11.5 | K152: 6.9 | L152: 17.9 | M152: 25
A153: 1 | B153: 4 | C153: 3 | F153: 230 | G153: 200 | J153: 11 | K153: 6.5 | L153: 18 | M153: 25.3
